Workbook

Sheet Список
G1: ver. 16.06.2023
B2: Проект (название)
B3: Проект (номер)
B5: ZLIN-Material number | C5: Название чертежей | D5: Чертеж | E5: Колонна | F5: Комментарий (если требуется)

Sheet ZRAW
A1: Material # | B1: Material type | C1: Description | D1: Size/dimention | E1: Basic material | F1: Тип материала | G1: Доп. Параметр | H1: Размер 1 | I1: Размер 2 | J1: Размер 3 | K1: Запись типоразмера | L1: Базовый материал | M1: Материал ANSI/ASTM | N1: Материал EN | O1: Материал ГОСТ | P1: Материал в спецификации | Q1: Артикул 1С | R1: Поз.№ | S1: Удельный вес | T1: Column20
A2: 10028766 | B2: ZRAW | C2: FILTER MESH NR.30 MW0.5; 316L | D2: MW0.5 | E2: 316L | F2: Сетка | G2: фильтр | K2: фильтр NR.30; | L2: 316L | M2: 316L | N2: 1.4404 | P2: Сетка фильтр NR.30; 316L | Q2: 10028766 | S2: 1 | T2: kg/m2
A3: 10039510 | B3: ZRAW | C3: FILTER MESH NR.35 MW0.45; 1.4401 | D3: 1.02M | E3: 1.4401/316 | F3: Сетка | G3: фильтр | K3: фильтр NR.35; | L3: 316 | M3: 316 | N3: 1.4401 | O3: 08CR18NI9 | P3: Сетка фильтр NR.35; 316 | Q3: 10039510 | S3: 1 | T3: kg/m2
A4: 11000007 | B4: ZRAW | C4: GASKET CORD; PTFE | D4: 16x16 | E4: PTFE | F4: Прокладка_набивка | H4: 16 | J4: 16 | K4: 16x16; | L4: PTFE | P4: Прокладка_набивка 16x16; PTFE | Q4: 11000007 | S4: 0.313 | T4: kg
A5: 11000020 | B5: ZRAW | C5: GASKET CORD; PTFE | D5: 15X15 | E5: PTFE | F5: Прокладка_набивка | H5: 15 | J5: 15 | K5: 15x15; | L5: PTFE | P5: Прокладка_набивка 15x15; PTFE | Q5: 11000020 | S5: 0.313 | T5: kg
A6: 11000021 | B6: ZRAW | C6: GASKET CORD; PTFE | D6: 18X18 | E6: PTFE | F6: Прокладка_набивка | H6: 18 | J6: 18 | K6: 18x18; | L6: PTFE | P6: Прокладка_набивка 18x18; PTFE | Q6: 11000021 | S6: 0.313 | T6: kg
A7: 10005716 | B7: ZRAW | C7: GASKET LADDER TAPE 30X3; GLASS | D7: 30X3 | E7: Glas/Glass | F7: Лента | H7: 30 | J7: 3 | K7: 30x3; | L7: Glass | P7: Лента 30x3; Glass | Q7: 10005716 | S7: 0.07 | T7: kg/m
A8: 10006919 | B8: ZRAW | C8: GASKET TAPE 30X3; PTFE | D8: 30X3 | E8: PTFE | F8: Лента | H8: 30 | J8: 3 | K8: 30x3; | L8: PTFE | P8: Лента 30x3; PTFE | Q8: 10006919 | T8: kg/m
A9: 10005653 | B9: ZRAW | C9: GASKET TAPE 7X2.5; PTFE | D9: 7X2.5 | E9: PTFE | F9: Лента | H9: 7 | J9: 2.5 | K9: 7x2.5; | L9: PTFE | P9: Лента 7x2.5; PTFE | Q9: 10005653 | S9: 0.013 | T9: kg/m
A10: 10006335 | B10: ZRAW | C10: HEX BOLT DIN933 M10X20; 1.4006 | D10: M10X20 | E10: 1.4006/410 | F10: Болт | G10: DIN933 | H10: M10 | I10: 20 | K10: M10x20; | L10: 410 | M10: 410 | N10: 1.4006 | P10: Болт M10x20; 410 | Q10: 10006335 | R10: 412 | S10: 0.021
A11: 10006054 | B11: ZRAW | C11: HEX BOLT DIN933 M10X20; 1.4307 | D11: M10X20 | E11: 1.4307/304L | F11: Болт | G11: DIN933 | H11: M10 | I11: 20 | K11: M10x20; | L11: 304L | M11: 304L | N11: 1.4307 | P11: Болт M10x20; 304L | Q11: 10006054 | R11: 412 | S11: 0.021
A12: 10006087 | B12: ZRAW | C12: HEX BOLT DIN933 M10X20; 1.4404 | D12: M10X20 | E12: 1.4404/316L | F12: Болт | G12: DIN933 | H12: M10 | I12: 20 | K12: M10x20; | L12: 316L | M12: 316L | N12: 1.4404 | P12: Болт M10x20; 316L | Q12: 10006087 | R12: 412 | S12: 0.021
A13: 10004544 | B13: ZRAW | C13: HEX BOLT DIN933 M10X20; 1.4539 | D13: M10X20 | E13: 1.4539/904L | F13: Болт | G13: DIN933 | H13: M10 | I13: 20 | K13: M10x20; | L13: 904L | M13: 904L | N13: 1.4539 | P13: Болт M10x20; 904L | Q13: 10004544 | R13: 412 | S13: 0.021
A14: 10007202 | B14: ZRAW | C14: HEX BOLT DIN933 M10X20; 1.4541 | D14: M10X20 | E14: 1.4541/321 | F14: Болт | G14: DIN933 | H14: M10 | I14: 20 | K14: M10x20; | L14: 321 | M14: 321 | N14: 1.4541 | P14: Болт M10x20; 321 | Q14: 10007202 | R14: 412 | S14: 0.021
A15: 10008266 | B15: ZRAW | C15: HEX BOLT DIN933 M10X20; 304L | D15: M10X20 | E15: 304L | F15: Болт | G15: DIN933 | H15: M10 | I15: 20 | K15: M10x20; | L15: 304L | M15: 304L | P15: Болт M10x20; 304L | Q15: 10008266 | R15: 412 | S15: 0.021
A16: 10006637 | B16: ZRAW | C16: HEX BOLT DIN933 M10X20; 8.8 | D16: M10X20 | E16: 8.8 | F16: Болт | G16: DIN933 | H16: M10 | I16: 20 | K16: M10x20; | L16: 8.8 | P16: Болт M10x20; 8.8 | Q16: 10006637 | R16: 412 | S16: 0.021
A17: 10006948 | B17: ZRAW | C17: HEX BOLT DIN933 M10X20; A-193GR.B6 | D17: M10X20 | E17: A193 Gr.B6 | F17: Болт | G17: DIN933 | H17: M10 | I17: 20 | K17: M10x20; | L17: A193 Gr.B6 | M17: A193 Gr.B6 | P17: Болт M10x20; A193 Gr.B6 | Q17: 10006948 | R17: 412 | S17: 0.021
A18: 10006954 | B18: ZRAW | C18: HEX BOLT DIN933 M10X20; A-193GR.B8 | D18: M10X20 | E18: A193 Gr.B8 | F18: Болт | G18: DIN933 | H18: M10 | I18: 20 | K18: M10x20; | L18: A193 Gr.B8 | M18: A193 Gr.B8 | P18: Болт M10x20; A193 Gr.B8 | Q18: 10006954 | R18: 412 | S18: 0.021
A19: 10005335 | B19: ZRAW | C19: HEX BOLT DIN933 M10X20; A2 | D19: M10X20 | E19: A2 | F19: Болт | G19: DIN933 | H19: M10 | I19: 20 | K19: M10x20; | L19: A2 | P19: Болт M10x20; A2 | Q19: 10005335 | R19: 412 | S19: 0.021
A20: 10004356 | B20: ZRAW | C20: HEX BOLT DIN933 M10X20; A4 | D20: M10X20 | E20: A4 | F20: Болт | G20: DIN933 | H20: M10 | I20: 20 | K20: M10x20; | L20: A4 | P20: Болт M10x20; A4 | Q20: 10004356 | R20: 412 | S20: 0.021
A21: 10005010 | B21: ZRAW | C21: HEX BOLT DIN933 M10X25; A4 | D21: M10X25 | E21: A4 | F21: Болт | G21: DIN933 | H21: M10 | I21: 25 | K21: M10x25; | L21: A4 | P21: Болт M10x25; A4 | Q21: 10005010 | S21: 0.024
A22: 10006100 | B22: ZRAW | C22: HEX BOLT DIN933 M10X30; 1.4307 | D22: M10X30 | E22: 1.4307/304L | F22: Болт | G22: DIN933 | H22: M10 | I22: 30 | K22: M10x30; | L22: 304L | M22: 304L | N22: 1.4307 | P22: Болт M10x30; 304L | Q22: 10006100 | R22: 413 | S22: 0.026
A23: 10006062 | B23: ZRAW | C23: HEX BOLT DIN933 M10X30; 1.4404 | D23: M10X30 | E23: 1.4404/316L | F23: Болт | G23: DIN933 | H23: M10 | I23: 30 | K23: M10x30; | L23: 316L | M23: 316L | N23: 1.4404 | P23: Болт M10x30; 316L | Q23: 10006062 | R23: 413 | S23: 0.026
A24: 10004264 | B24: ZRAW | C24: HEX BOLT DIN933 M10X30; 1.4539 | D24: M10X30 | E24: 1.4539/904L | F24: Болт | G24: DIN933 | H24: M10 | I24: 30 | K24: M10x30; | L24: 904L | M24: 904L | N24: 1.4539 | P24: Болт M10x30; 904L | Q24: 10004264 | R24: 413 | S24: 0.026
A25: 10005666 | B25: ZRAW | C25: HEX BOLT DIN933 M10X30; 1.4541 | D25: M10X30 | E25: 1.4541/321 | F25: Болт | G25: DIN933 | H25: M10 | I25: 30 | K25: M10x30; | L25: 321 | M25: 321 | N25: 1.4541 | P25: Болт M10x30; 321 | Q25: 10005666 | R25: 413 | S25: 0.026
A26: 10008267 | B26: ZRAW | C26: HEX BOLT DIN933 M10X30; 304L | D26: M10X30 | E26: 304L | F26: Болт | G26: DIN933 | H26: M10 | I26: 30 | K26: M10x30; | L26: 304L | M26: 304L | P26: Болт M10x30; 304L | Q26: 10008267 | R26: 413 | S26: 0.026
A27: 10005493 | B27: ZRAW | C27: HEX BOLT DIN933 M10X30; 8.8 | D27: M10X30 | E27: 8.8 | F27: Болт | G27: DIN933 | H27: M10 | I27: 30 | K27: M10x30; | L27: 8.8 | P27: Болт M10x30; 8.8 | Q27: 10005493 | R27: 413 | S27: 0.026
A28: 10006690 | B28: ZRAW | C28: HEX BOLT DIN933 M10X30; A-193GR.B6 | D28: M10X30 | E28: A193 Gr.B6 | F28: Болт | G28: DIN933 | H28: M10 | I28: 30 | K28: M10x30; | L28: A193 Gr.B6 | P28: Болт M10x30; A193 Gr.B6 | Q28: 10006690 | R28: 413 | S28: 0.026
A29: 10006640 | B29: ZRAW | C29: HEX BOLT DIN933 M10X30; A-193GR.B8 | D29: M10X30 | E29: A193 Gr.B8 | F29: Болт | G29: DIN933 | H29: M10 | I29: 30 | K29: M10x30; | L29: A193 Gr.B8 | P29: Болт M10x30; A193 Gr.B8 | Q29: 10006640 | R29: 413 | S29: 0.026
A30: 10006686 | B30: ZRAW | C30: HEX BOLT DIN933 M10X30; A-193GR.B8M | D30: M10X30 | E30: A193 Gr.B8M | F30: Болт | G30: DIN933 | H30: M10 | I30: 30 | K30: M10x30; | L30: A193 Gr.B8M | P30: Болт M10x30; A193 Gr.B8M | Q30: 10006686 | R30: 413 | S30: 0.026
A31: 10007358 | B31: ZRAW | C31: HEX BOLT DIN933 M10X30; A-193GR.B8T | D31: M10X30 | E31: A193 Gr.B8T | F31: Болт | G31: DIN933 | H31: M10 | I31: 30 | K31: M10x30; | L31: A193 Gr.B8T | P31: Болт M10x30; A193 Gr.B8T | Q31: 10007358 | R31: 413 | S31: 0.026
A32: 10005475 | B32: ZRAW | C32: HEX BOLT DIN933 M10X30; A2 | D32: M10X30 | E32: A2 | F32: Болт | G32: DIN933 | H32: M10 | I32: 30 | K32: M10x30; | L32: A2 | P32: Болт M10x30; A2 | Q32: 10005475 | R32: 413 | S32: 0.026
A33: 10005387 | B33: ZRAW | C33: HEX BOLT DIN933 M10X30; A-320GR.B8M | D33: M10X30 | E33: A320 Gr.B8M | F33: Болт | G33: DIN933 | H33: M10 | I33: 30 | K33: M10x30; | L33: A320 Gr.B8M | P33: Болт M10x30; A320 Gr.B8M | Q33: 10005387 | R33: 413 | S33: 0.026
A34: 10004555 | B34: ZRAW | C34: HEX BOLT DIN933 M10X30; A4 | D34: M10X30 | E34: A4 | F34: Болт | G34: DIN933 | H34: M10 | I34: 30 | K34: M10x30; | L34: A4 | P34: Болт M10x30; A4 | Q34: 10004555 | R34: 413 | S34: 0.026
A35: 10004282 | B35: ZRAW | C35: HEX BOLT DIN933 M10X35; 1.4539 | D35: M10X35 | E35: 1.4539/904L | F35: Болт | G35: DIN933 | H35: M10 | I35: 35 | K35: M10x35; | L35: 904L | M35: 904L | N35: 1.4539 | P35: Болт M10x35; 904L | Q35: 10004282
A36: 10004357 | B36: ZRAW | C36: HEX BOLT DIN933 M10X35; A4 | D36: M10X35 | E36: A4 | F36: Болт | G36: DIN933 | H36: M10 | I36: 35 | K36: M10x35; | L36: A4 | P36: Болт M10x35; A4 | Q36: 10004357
A37: 10005352 | B37: ZRAW | C37: HEX BOLT DIN933 M10X40; 1.4006 | D37: M10X40 | E37: 1.4006/410 | F37: Болт | G37: DIN933 | H37: M10 | I37: 40 | K37: M10x40; | L37: 410 | M37: 410 | N37: 1.4006 | P37: Болт M10x40; 410 | Q37: 10005352 | R37: 414 | S37: 0.031
A38: 10006082 | B38: ZRAW | C38: HEX BOLT DIN933 M10X40; 1.4307 | D38: M10X40 | E38: 1.4307/304L | F38: Болт | G38: DIN933 | H38: M10 | I38: 40 | K38: M10x40; | L38: 304L | M38: 304L | N38: 1.4307 | P38: Болт M10x40; 304L | Q38: 10006082 | R38: 414 | S38: 0.031
A39: 10006063 | B39: ZRAW | C39: HEX BOLT DIN933 M10X40; 1.4404 | D39: M10X40 | E39: 1.4404/316L | F39: Болт | G39: DIN933 | H39: M10 | I39: 40 | K39: M10x40; | L39: 316L | M39: 316L | N39: 1.4404 | P39: Болт M10x40; 316L | Q39: 10006063 | R39: 414 | S39: 0.031
A40: 10006252 | B40: ZRAW | C40: HEX BOLT DIN933 M10X40; 1.4539 | D40: M10X40 | E40: 1.4539/904L | F40: Болт | G40: DIN933 | H40: M10 | I40: 40 | K40: M10x40; | L40: 904L | M40: 904L | N40: 1.4539 | P40: Болт M10x40; 904L | Q40: 10006252 | R40: 414 | S40: 0.031
A41: 10005515 | B41: ZRAW | C41: HEX BOLT DIN933 M10X40; 8.8 | D41: M10X40 | E41: 8.8 | F41: Болт | G41: DIN933 | H41: M10 | I41: 40 | K41: M10x40; | L41: 8.8 | P41: Болт M10x40; 8.8 | Q41: 10005515 | R41: 414 | S41: 0.031
A42: 10006913 | B42: ZRAW | C42: HEX BOLT DIN933 M10X40; A-193GR.B8 | D42: M10X40 | E42: A193 Gr.B8 | F42: Болт | G42: DIN933 | H42: M10 | I42: 40 | K42: M10x40; | L42: A193 Gr.B8 | P42: Болт M10x40; A193 Gr.B8 | Q42: 10006913 | R42: 414 | S42: 0.031
A43: 10007387 | B43: ZRAW | C43: HEX BOLT DIN933 M10X40; A-193GR.B8M | D43: M10X40 | E43: A193 Gr.B8M | F43: Болт | G43: DIN933 | H43: M10 | I43: 40 | K43: M10x40; | L43: A193 Gr.B8M | P43: Болт M10x40; A193 Gr.B8M | Q43: 10007387 | R43: 414 | S43: 0.031
A44: 10005007 | B44: ZRAW | C44: HEX BOLT DIN933 M10X40; A2 | D44: M10X40 | E44: A2 | F44: Болт | G44: DIN933 | H44: M10 | I44: 40 | K44: M10x40; | L44: A2 | P44: Болт M10x40; A2 | Q44: 10005007 | R44: 414 | S44: 0.031
A45: 10005009 | B45: ZRAW | C45: HEX BOLT DIN933 M10X40; A4 | D45: M10X40 | E45: A4 | F45: Болт | G45: DIN933 | H45: M10 | I45: 40 | K45: M10x40; | L45: A4 | P45: Болт M10x40; A4 | Q45: 10005009 | R45: 414 | S45: 0.031
A46: 10006337 | B46: ZRAW | C46: HEX BOLT DIN933 M10X50; 1.4006 | D46: M10X50 | E46: 1.4006/410 | F46: Болт | G46: DIN933 | H46: M10 | I46: 50 | K46: M10x50; | L46: 410 | M46: 410 | N46: 1.4006 | P46: Болт M10x50; 410 | Q46: 10006337 | R46: 415 | S46: 0.036
A47: 10006101 | B47: ZRAW | C47: HEX BOLT DIN933 M10X50; 1.4307 | D47: M10X50 | E47: 1.4307/304L | F47: Болт | G47: DIN933 | H47: M10 | I47: 50 | K47: M10x50; | L47: 304L | M47: 304L | N47: 1.4307 | P47: Болт M10x50; 304L | Q47: 10006101 | R47: 415 | S47: 0.036
A48: 10006086 | B48: ZRAW | C48: HEX BOLT DIN933 M10X50; 1.4404 | D48: M10X50 | E48: 1.4404/316L | F48: Болт | G48: DIN933 | H48: M10 | I48: 50 | K48: M10x50; | L48: 316L | M48: 316L | N48: 1.4404 | P48: Болт M10x50; 316L | Q48: 10006086 | R48: 415 | S48: 0.036
A49: 10004540 | B49: ZRAW | C49: HEX BOLT DIN933 M10X50; 1.4539 | D49: M10X50 | E49: 1.4539/904L | F49: Болт | G49: DIN933 | H49: M10 | I49: 50 | K49: M10x50; | L49: 904L | M49: 904L | N49: 1.4539 | P49: Болт M10x50; 904L | Q49: 10004540 | R49: 415 | S49: 0.036
A50: 10006592 | B50: ZRAW | C50: HEX BOLT DIN933 M10X50; 1.4541 | D50: M10X50 | E50: 1.4541/321 | F50: Болт | G50: DIN933 | H50: M10 | I50: 50 | K50: M10x50; | L50: 321 | M50: 321 | N50: 1.4541 | P50: Болт M10x50; 321 | Q50: 10006592 | R50: 415 | S50: 0.036
A51: 10006636 | B51: ZRAW | C51: HEX BOLT DIN933 M10X50; A-193GR.B6 | D51: M10X50 | E51: A193 Gr.B6 | F51: Болт | G51: DIN933 | H51: M10 | I51: 50 | K51: M10x50; | L51: A193 Gr.B6 | P51: Болт M10x50; A193 Gr.B6 | Q51: 10006636 | R51: 415 | S51: 0.036
A52: 10006687 | B52: ZRAW | C52: HEX BOLT DIN933 M10X50; A-193GR.B8 | D52: M10X50 | E52: A193 Gr.B8 | F52: Болт | G52: DIN933 | H52: M10 | I52: 50 | K52: M10x50; | L52: A193 Gr.B8 | P52: Болт M10x50; A193 Gr.B8 | Q52: 10006687 | R52: 415 | S52: 0.036
A53: 10006688 | B53: ZRAW | C53: HEX BOLT DIN933 M10X50; A-193GR.B8M | D53: M10X50 | E53: A193 Gr.B8M | F53: Болт | G53: DIN933 | H53: M10 | I53: 50 | K53: M10x50; | L53: A193 Gr.B8M | P53: Болт M10x50; A193 Gr.B8M | Q53: 10006688 | R53: 415 | S53: 0.036
A54: 10007355 | B54: ZRAW | C54: HEX BOLT DIN933 M10X50; A-193GR.B8T | D54: M10X50 | E54: A193 Gr.B8T | F54: Болт | G54: DIN933 | H54: M10 | I54: 50 | K54: M10x50; | L54: A193 Gr.B8T | P54: Болт M10x50; A193 Gr.B8T | Q54: 10007355 | R54: 415 | S54: 0.036
A55: 10006248 | B55: ZRAW | C55: HEX BOLT DIN933 M10X50; A2 | D55: M10X50 | E55: A2 | F55: Болт | G55: DIN933 | H55: M10 | I55: 50 | K55: M10x50; | L55: A2 | P55: Болт M10x50; A2 | Q55: 10006248 | R55: 415 | S55: 0.036
A56: 10004539 | B56: ZRAW | C56: HEX BOLT DIN933 M10X50; A4 | D56: M10X50 | E56: A4 | F56: Болт | G56: DIN933 | H56: M10 | I56: 50 | K56: M10x50; | L56: A4 | P56: Болт M10x50; A4 | Q56: 10004539 | R56: 415 | S56: 0.036
A57: 10006083 | B57: ZRAW | C57: HEX BOLT DIN933 M10X60; 1.4404 | D57: M10X60 | E57: 1.4404/316L | F57: Болт | G57: DIN933 | H57: M10 | I57: 60 | K57: M10x60; | L57: 316L | M57: 316L | N57: 1.4404 | P57: Болт M10x60; 316L | Q57: 10006083 | R57: 416 | S57: 0.041
A58: 10006270 | B58: ZRAW | C58: HEX BOLT DIN933 M10X60; 1.4539 | D58: M10X60 | E58: 1.4539/904L | F58: Болт | G58: DIN933 | H58: M10 | I58: 60 | K58: M10x60; | L58: 904L | M58: 904L | N58: 1.4539 | P58: Болт M10x60; 904L | Q58: 10006270 | R58: 416 | S58: 0.041
A59: 10004355 | B59: ZRAW | C59: HEX BOLT DIN933 M10X60; A4 | D59: M10X60 | E59: A4 | F59: Болт | G59: DIN933 | H59: M10 | I59: 60 | K59: M10x60; | L59: A4 | P59: Болт M10x60; A4 | Q59: 10004355 | R59: 416 | S59: 0.041
A60: 10006068 | B60: ZRAW | C60: HEX BOLT DIN933 M10X80; 1.4307 | D60: M10X80 | E60: 1.4307/304L | F60: Болт | G60: DIN933 | H60: M10 | I60: 80 | K60: M10x80; | L60: 304L | M60: 304L | N60: 1.4307 | P60: Болт M10x80; 304L | Q60: 10006068 | R60: 417 | S60: 0.051
A61: 10006109 | B61: ZRAW | C61: HEX BOLT DIN933 M10X80; A-193GR.B8 | D61: M10X80 | E61: A193 Gr.B8 | F61: Болт | G61: DIN933 | H61: M10 | I61: 80 | K61: M10x80; | L61: A193 Gr.B8 | P61: Болт M10x80; A193 Gr.B8 | Q61: 10006109 | R61: 417 | S61: 0.051
A62: 10006480 | B62: ZRAW | C62: HEX BOLT DIN933 M10X80; A4 | D62: M10X80 | E62: A4 | F62: Болт | G62: DIN933 | H62: M10 | I62: 80 | K62: M10x80; | L62: A4 | P62: Болт M10x80; A4 | Q62: 10006480 | R62: 417 | S62: 0.051
A63: 10006834 | B63: ZRAW | C63: HEX BOLT DIN933 M12X30; 1.4539 | D63: M12X30 | E63: 1.4539/904L | F63: Болт | G63: DIN933 | H63: M12 | I63: 30 | K63: M12x30; | L63: 904L | M63: 904L | N63: 1.4539 | P63: Болт M12x30; 904L | Q63: 10006834 | R63: 420 | S63: 0.038
A64: 10006865 | B64: ZRAW | C64: HEX BOLT DIN933 M12X30; 1.4541 | D64: M12X30 | E64: 1.4541/321 | F64: Болт | G64: DIN933 | H64: M12 | I64: 30 | K64: M12x30; | L64: 321 | M64: 321 | N64: 1.4541 | P64: Болт M12x30; 321 | Q64: 10006865 | R64: 420 | S64: 0.038
A65: 10005467 | B65: ZRAW | C65: HEX BOLT DIN933 M12X30; A2 | D65: M12X30 | E65: A2 | F65: Болт | G65: DIN933 | H65: M12 | I65: 30 | K65: M12x30; | L65: A2 | P65: Болт M12x30; A2 | Q65: 10005467 | R65: 420 | S65: 0.038
A66: 10004559 | B66: ZRAW | C66: HEX BOLT DIN933 M12X30; A4 | D66: M12X30 | E66: A4 | F66: Болт | G66: DIN933 | H66: M12 | I66: 30 | K66: M12x30; | L66: A4 | P66: Болт M12x30; A4 | Q66: 10004559 | R66: 420 | S66: 0.038
A67: 10005507 | B67: ZRAW | C67: HEX BOLT DIN933 M12X40; 1.4006 | D67: M12X40 | E67: 1.4006/410 | F67: Болт | G67: DIN933 | H67: M12 | I67: 40 | K67: M12x40; | L67: 410 | M67: 410 | N67: 1.4006 | P67: Болт M12x40; 410 | Q67: 10005507 | R67: 421 | S67: 0.045
A68: 10004266 | B68: ZRAW | C68: HEX BOLT DIN933 M12X40; 1.4539 | D68: M12X40 | E68: 1.4539/904L | F68: Болт | G68: DIN933 | H68: M12 | I68: 40 | K68: M12x40; | L68: 904L | M68: 904L | N68: 1.4539 | P68: Болт M12x40; 904L | Q68: 10004266 | R68: 421 | S68: 0.045
A69: 10006483 | B69: ZRAW | C69: HEX BOLT DIN933 M12X40; A2 | D69: M12X40 | E69: A2 | F69: Болт | G69: DIN933 | H69: M12 | I69: 40 | K69: M12x40; | L69: A2 | P69: Болт M12x40; A2 | Q69: 10006483 | R69: 421 | S69: 0.045
A70: 10004564 | B70: ZRAW | C70: HEX BOLT DIN933 M12X40; A4 | D70: M12X40 | E70: A4 | F70: Болт | G70: DIN933 | H70: M12 | I70: 40 | K70: M12x40; | L70: A4 | P70: Болт M12x40; A4 | Q70: 10004564 | R70: 421 | S70: 0.045
A71: 10005008 | B71: ZRAW | C71: HEX BOLT DIN933 M12X45; A2 | D71: M12X45 | E71: A2 | F71: Болт | G71: DIN933 | H71: M12 | I71: 45 | K71: M12x45; | L71: A2 | P71: Болт M12x45; A2 | Q71: 10005008
A72: 10006085 | B72: ZRAW | C72: HEX BOLT DIN933 M12X50; 1.4404 | D72: M12X50 | E72: 1.4404/316L | F72: Болт | G72: DIN933 | H72: M12 | I72: 50 | K72: M12x50; | L72: 316L | M72: 316L | N72: 1.4404 | P72: Болт M12x50; 316L | Q72: 10006085 | R72: 422 | S72: 0.055
A73: 10005558 | B73: ZRAW | C73: HEX BOLT DIN933 M12X50; 1.4539 | D73: M12X50 | E73: 1.4539/904L | F73: Болт | G73: DIN933 | H73: M12 | I73: 50 | K73: M12x50; | L73: 904L | M73: 904L | N73: 1.4539 | P73: Болт M12x50; 904L | Q73: 10005558 | R73: 422 | S73: 0.055
A74: 10006856 | B74: ZRAW | C74: HEX BOLT DIN933 M12X50; 1.4541 | D74: M12X50 | E74: 1.4541/321 | F74: Болт | G74: DIN933 | H74: M12 | I74: 50 | K74: M12x50; | L74: 321 | M74: 321 | N74: 1.4541 | P74: Болт M12x50; 321 | Q74: 10006856 | R74: 422 | S74: 0.055
A75: 10006643 | B75: ZRAW | C75: HEX BOLT DIN933 M12X50; A-193GR.B6 | D75: M12X50 | E75: A193 Gr.B6 | F75: Болт | G75: DIN933 | H75: M12 | I75: 50 | K75: M12x50; | L75: A193 Gr.B6 | P75: Болт M12x50; A193 Gr.B6 | Q75: 10006643 | R75: 422 | S75: 0.055
A76: 10006645 | B76: ZRAW | C76: HEX BOLT DIN933 M12X50; A-193GR.B8 | D76: M12X50 | E76: A193 Gr.B8 | F76: Болт | G76: DIN933 | H76: M12 | I76: 50 | K76: M12x50; | L76: A193 Gr.B8 | P76: Болт M12x50; A193 Gr.B8 | Q76: 10006645 | R76: 422 | S76: 0.055
A77: 10006642 | B77: ZRAW | C77: HEX BOLT DIN933 M12X50; A-193GR.B8M | D77: M12X50 | E77: A193 Gr.B8M | F77: Болт | G77: DIN933 | H77: M12 | I77: 50 | K77: M12x50; | L77: A193 Gr.B8M | P77: Болт M12x50; A193 Gr.B8M | Q77: 10006642 | R77: 422 | S77: 0.055
A78: 10007360 | B78: ZRAW | C78: HEX BOLT DIN933 M12X50; A-193GR.B8T | D78: M12X50 | E78: A193 Gr.B8T | F78: Болт | G78: DIN933 | H78: M12 | I78: 50 | K78: M12x50; | L78: A193 Gr.B8T | P78: Болт M12x50; A193 Gr.B8T | Q78: 10007360 | R78: 422 | S78: 0.055
A79: 10004142 | B79: ZRAW | C79: HEX BOLT DIN933 M12X50; A2 | D79: M12X50 | E79: A2 | F79: Болт | G79: DIN933 | H79: M12 | I79: 50 | K79: M12x50; | L79: A2 | P79: Болт M12x50; A2 | Q79: 10004142 | R79: 422 | S79: 0.055
A80: 10005029 | B80: ZRAW | C80: HEX BOLT DIN933 M12X50; A4 | D80: M12X50 | E80: A4 | F80: Болт | G80: DIN933 | H80: M12 | I80: 50 | K80: M12x50; | L80: A4 | P80: Болт M12x50; A4 | Q80: 10005029 | R80: 422 | S80: 0.055
A81: 10006611 | B81: ZRAW | C81: HEX BOLT DIN933 M16X100; A4 | D81: M16X100 | E81: A4 | F81: Болт | G81: DIN933 | H81: M16 | I81: 100 | K81: M16x100; | L81: A4 | P81: Болт M16x100; A4 | Q81: 10006611 | S81: 0.17
A82: 10005021 | B82: ZRAW | C82: HEX BOLT DIN933 M16X120; A4 | D82: M16X120 | E82: A4 | F82: Болт | G82: DIN933 | H82: M16 | I82: 120 | K82: M16x120; | L82: A4 | P82: Болт M16x120; A4 | Q82: 10005021 | S82: 0.197
A83: 10006073 | B83: ZRAW | C83: HEX BOLT DIN933 M16X30; 1.4404 | D83: M16X30 | E83: 1.4404/316L | F83: Болт | G83: DIN933 | H83: M16 | I83: 30 | K83: M16x30; | L83: 316L | M83: 316L | N83: 1.4404 | P83: Болт M16x30; 316L | Q83: 10006073 | R83: 425 | S83: 0.077
A84: 10004543 | B84: ZRAW | C84: HEX BOLT DIN933 M16X30; 1.4539 | D84: M16X30 | E84: 1.4539/904L | F84: Болт | G84: DIN933 | H84: M16 | I84: 30 | K84: M16x30; | L84: 904L | M84: 904L | N84: 1.4539 | P84: Болт M16x30; 904L | Q84: 10004543 | R84: 425 | S84: 0.077
A85: 10005591 | B85: ZRAW | C85: HEX BOLT DIN933 M16X30; 1.4541 | D85: M16X30 | E85: 1.4541/321 | F85: Болт | G85: DIN933 | H85: M16 | I85: 30 | K85: M16x30; | L85: 321 | M85: 321 | N85: 1.4541 | P85: Болт M16x30; 321 | Q85: 10005591 | R85: 425 | S85: 0.077
A86: 10006648 | B86: ZRAW | C86: HEX BOLT DIN933 M16X30; A-193GR.B6 | D86: M16X30 | E86: A193 Gr.B6 | F86: Болт | G86: DIN933 | H86: M16 | I86: 30 | K86: M16x30; | L86: A193 Gr.B6 | P86: Болт M16x30; A193 Gr.B6 | Q86: 10006648 | R86: 425 | S86: 0.077
A87: 10005685 | B87: ZRAW | C87: HEX BOLT DIN933 M16X30; A2 | D87: M16X30 | E87: A2 | F87: Болт | G87: DIN933 | H87: M16 | I87: 30 | K87: M16x30; | L87: A2 | P87: Болт M16x30; A2 | Q87: 10005685 | R87: 425 | S87: 0.077
A88: 10005684 | B88: ZRAW | C88: HEX BOLT DIN933 M16X30; A4 | D88: M16X30 | E88: A4 | F88: Болт | G88: DIN933 | H88: M16 | I88: 30 | K88: M16x30; | L88: A4 | P88: Болт M16x30; A4 | Q88: 10005684 | R88: 425 | S88: 0.077
A89: 10007247 | B89: ZRAW | C89: HEX BOLT DIN933 M16X40; 1.4541 | D89: M16X40 | E89: 1.4541/321 | F89: Болт | G89: DIN933 | H89: M16 | I89: 40 | K89: M16x40; | L89: 321 | M89: 321 | N89: 1.4541 | P89: Болт M16x40; 321 | Q89: 10007247 | R89: 426 | S89: 0.09
A90: 10005027 | B90: ZRAW | C90: HEX BOLT DIN933 M16X40; A2 | D90: M16X40 | E90: A2 | F90: Болт | G90: DIN933 | H90: M16 | I90: 40 | K90: M16x40; | L90: A2 | P90: Болт M16x40; A2 | Q90: 10005027 | R90: 426 | S90: 0.09
A91: 10005028 | B91: ZRAW | C91: HEX BOLT DIN933 M16X40; A4 | D91: M16X40 | E91: A4 | F91: Болт | G91: DIN933 | H91: M16 | I91: 40 | K91: M16x40; | L91: A4 | P91: Болт M16x40; A4 | Q91: 10005028 | R91: 426 | S91: 0.09
A92: 10006333 | B92: ZRAW | C92: HEX BOLT DIN933 M16X50; 1.4006 | D92: M16X50 | E92: 1.4006/410 | F92: Болт | G92: DIN933 | H92: M16 | I92: 50 | K92: M16x50; | L92: 410 | M92: 410 | N92: 1.4006 | P92: Болт M16x50; 410 | Q92: 10006333 | R92: 427 | S92: 0.103
A93: 10004541 | B93: ZRAW | C93: HEX BOLT DIN933 M16X50; 1.4539 | D93: M16X50 | E93: 1.4539/904L | F93: Болт | G93: DIN933 | H93: M16 | I93: 50 | K93: M16x50; | L93: 904L | M93: 904L | N93: 1.4539 | P93: Болт M16x50; 904L | Q93: 10004541 | R93: 427 | S93: 0.103
A94: 10007391 | B94: ZRAW | C94: HEX BOLT DIN933 M16X50; A-193GR.B8M | D94: M16X50 | E94: A193 Gr.B8M | F94: Болт | G94: DIN933 | H94: M16 | I94: 50 | K94: M16x50; | L94: A193 Gr.B8M | P94: Болт M16x50; A193 Gr.B8M | Q94: 10007391 | R94: 427 | S94: 0.103
A95: 10007364 | B95: ZRAW | C95: HEX BOLT DIN933 M16X50; A-193GR.B8T | D95: M16X50 | E95: A193 Gr.B8T | F95: Болт | G95: DIN933 | H95: M16 | I95: 50 | K95: M16x50; | L95: A193 Gr.B8T | P95: Болт M16x50; A193 Gr.B8T | Q95: 10007364 | R95: 427 | S95: 0.103
A96: 10005024 | B96: ZRAW | C96: HEX BOLT DIN933 M16X50; A2 | D96: M16X50 | E96: A2 | F96: Болт | G96: DIN933 | H96: M16 | I96: 50 | K96: M16x50; | L96: A2 | P96: Болт M16x50; A2 | Q96: 10005024 | R96: 427 | S96: 0.103
A97: 10004561 | B97: ZRAW | C97: HEX BOLT DIN933 M16X50; A4 | D97: M16X50 | E97: A4 | F97: Болт | G97: DIN933 | H97: M16 | I97: 50 | K97: M16x50; | L97: A4 | P97: Болт M16x50; A4 | Q97: 10004561 | R97: 427 | S97: 0.103
A98: 10006088 | B98: ZRAW | C98: HEX BOLT DIN933 M16X60; 1.4404 | D98: M16X60 | E98: 1.4404/316L | F98: Болт | G98: DIN933 | H98: M16 | I98: 60 | K98: M16x60; | L98: 316L | M98: 316L | N98: 1.4404 | P98: Болт M16x60; 316L | Q98: 10006088 | R98: 428 | S98: 0.117
A99: 10004265 | B99: ZRAW | C99: HEX BOLT DIN933 M16X60; 1.4539 | D99: M16X60 | E99: 1.4539/904L | F99: Болт | G99: DIN933 | H99: M16 | I99: 60 | K99: M16x60; | L99: 904L | M99: 904L | N99: 1.4539 | P99: Болт M16x60; 904L | Q99: 10004265 | R99: 428 | S99: 0.117
A100: 10006619 | B100: ZRAW | C100: HEX BOLT DIN933 M16X60; 1.4541 | D100: M16X60 | E100: 1.4541/321 | F100: Болт | G100: DIN933 | H100: M16 | I100: 60 | K100: M16x60; | L100: 321 | M100: 321 | N100: 1.4541 | P100: Болт M16x60; 321 | Q100: 10006619 | R100: 428 | S100: 0.117
A101: 10006675 | B101: ZRAW | C101: HEX BOLT DIN933 M16X60; A-193GR.B6 | D101: M16X60 | E101: A193 Gr.B6 | F101: Болт | G101: DIN933 | H101: M16 | I101: 60 | K101: M16x60; | L101: A193 Gr.B6 | P101: Болт M16x60; A193 Gr.B6 | Q101: 10006675 | R101: 428 | S101: 0.117
A102: 10006646 | B102: ZRAW | C102: HEX BOLT DIN933 M16X60; A-193GR.B8 | D102: M16X60 | E102: A193 Gr.B8 | F102: Болт | G102: DIN933 | H102: M16 | I102: 60 | K102: M16x60; | L102: A193 Gr.B8 | P102: Болт M16x60; A193 Gr.B8 | Q102: 10006646 | R102: 428 | S102: 0.117
A103: 10006676 | B103: ZRAW | C103: HEX BOLT DIN933 M16X60; A-193GR.B8M | D103: M16X60 | E103: A193 Gr.B8M | F103: Болт | G103: DIN933 | H103: M16 | I103: 60 | K103: M16x60; | L103: A193 Gr.B8M | P103: Болт M16x60; A193 Gr.B8M | Q103: 10006676 | R103: 428 | S103: 0.117
A104: 10005025 | B104: ZRAW | C104: HEX BOLT DIN933 M16X60; A2 | D104: M16X60 | E104: A2 | F104: Болт | G104: DIN933 | H104: M16 | I104: 60 | K104: M16x60; | L104: A2 | P104: Болт M16x60; A2 | Q104: 10005025 | R104: 428 | S104: 0.117
A105: 10004563 | B105: ZRAW | C105: HEX BOLT DIN933 M16X60; A4 | D105: M16X60 | E105: A4 | F105: Болт | G105: DIN933 | H105: M16 | I105: 60 | K105: M16x60; | L105: A4 | P105: Болт M16x60; A4 | Q105: 10004563 | R105: 428 | S105: 0.117
A106: 10005020 | B106: ZRAW | C106: HEX BOLT DIN933 M16X65; A4 | D106: M16X65 | E106: A4 | F106: Болт | G106: DIN933 | H106: M16 | I106: 65 | K106: M16x65; | L106: A4 | P106: Болт M16x65; A4 | Q106: 10005020
A107: 10006081 | B107: ZRAW | C107: HEX BOLT DIN933 M16X80; 1.4404 | D107: M16X80 | E107: 1.4404/316L | F107: Болт | G107: DIN933 | H107: M16 | I107: 80 | K107: M16x80; | L107: 316L | M107: 316L | N107: 1.4404 | P107: Болт M16x80; 316L | Q107: 10006081 | R107: 429 | S107: 0.144
A108: 10007123 | B108: ZRAW | C108: HEX BOLT DIN933 M16X80; 1.4541 | D108: M16X80 | E108: 1.4541/321 | F108: Болт | G108: DIN933 | H108: M16 | I108: 80 | K108: M16x80; | L108: 321 | M108: 321 | N108: 1.4541 | P108: Болт M16x80; 321 | Q108: 10007123 | R108: 429 | S108: 0.144
A109: 10007318 | B109: ZRAW | C109: HEX BOLT DIN933 M16X80; A-193 GR.B6X | D109: M16X80 | E109: A193 Gr.B6X | F109: Болт | G109: DIN933 | H109: M16 | I109: 80 | K109: M16x80; | L109: A193 Gr.B6X | P109: Болт M16x80; A193 Gr.B6X | Q109: 10007318 | R109: 429 | S109: 0.144
A110: 10006607 | B110: ZRAW | C110: HEX BOLT DIN933 M16X80; A2 | D110: M16X80 | E110: A2 | F110: Болт | G110: DIN933 | H110: M16 | I110: 80 | K110: M16x80; | L110: A2 | P110: Болт M16x80; A2 | Q110: 10006607 | R110: 429 | S110: 0.144
A111: 10004993 | B111: ZRAW | C111: HEX BOLT DIN933 M16X80; A4 | D111: M16X80 | E111: A4 | F111: Болт | G111: DIN933 | H111: M16 | I111: 80 | K111: M16x80; | L111: A4 | P111: Болт M16x80; A4 | Q111: 10004993 | R111: 429 | S111: 0.144
A112: 10005590 | B112: ZRAW | C112: HEX BOLT DIN933 M16X90; 1.4541 | D112: M16X90 | E112: 1.4541/321 | F112: Болт | G112: DIN933 | H112: M16 | I112: 90 | K112: M16x90; | L112: 321 | M112: 321 | N112: 1.4541 | P112: Болт M16x90; 321 | Q112: 10005590 | S112: 0.157
A113: 10036200 | B113: ZRAW | C113: HEX BOLT DIN933 M20X50; A2 | D113: M20X50 | E113: A2 | F113: Болт | G113: DIN933 | H113: M20 | I113: 50 | K113: M20x50; | L113: A2 | P113: Болт M20x50; A2 | Q113: 10036200 | R113: 430 | S113: 0.14
A114: 10005017 | B114: ZRAW | C114: HEX BOLT DIN933 M20X50; A4 | D114: M20X50 | E114: A4 | F114: Болт | G114: DIN933 | H114: M20 | I114: 50 | K114: M20x50; | L114: A4 | P114: Болт M20x50; A4 | Q114: 10005017 | R114: 430 | S114: 0.14
A115: 10033797 | B115: ZRAW | C115: HEX BOLT DIN933 M20X60; A2 | D115: M20X60 | E115: A2 | F115: Болт | G115: DIN933 | H115: M20 | I115: 60 | K115: M20x60; | L115: A2 | P115: Болт M20x60; A2 | Q115: 10033797 | R115: 431 | S115: 0.196
A116: 10005018 | B116: ZRAW | C116: HEX BOLT DIN933 M20X60; A4 | D116: M20X60 | E116: A4 | F116: Болт | G116: DIN933 | H116: M20 | I116: 60 | K116: M20x60; | L116: A4 | P116: Болт M20x60; A4 | Q116: 10005018 | R116: 431 | S116: 0.196
A117: 10004560 | B117: ZRAW | C117: HEX BOLT DIN933 M20X70; A4 | D117: M20X70 | E117: A4 | F117: Болт | G117: DIN933 | H117: M20 | I117: 70 | K117: M20x70; | L117: A4 | P117: Болт M20x70; A4 | Q117: 10004560 | R117: 432 | S117: 0.21
A118: 10006131 | B118: ZRAW | C118: HEX BOLT DIN933 M20X80; 1.4541 | D118: M20X80 | E118: 1.4541/321 | F118: Болт | G118: DIN933 | H118: M20 | I118: 80 | K118: M20x80; | L118: 321 | M118: 321 | N118: 1.4541 | P118: Болт M20x80; 321 | Q118: 10006131 | R118: 433 | S118: 0.225
A119: 10006781 | B119: ZRAW | C119: HEX BOLT DIN933 M20X80; 8.8 | D119: M20X80 | E119: 8.8 | F119: Болт | G119: DIN933 | H119: M20 | I119: 80 | K119: M20x80; | L119: 8.8 | P119: Болт M20x80; 8.8 | Q119: 10006781 | R119: 433 | S119: 0.225
A120: 10006731 | B120: ZRAW | C120: HEX BOLT DIN933 M20X80; A-193GR.B6 | D120: M20X80 | E120: A193 Gr.B6 | F120: Болт | G120: DIN933 | H120: M20 | I120: 80 | K120: M20x80; | L120: A193 Gr.B6 | P120: Болт M20x80; A193 Gr.B6 | Q120: 10006731 | R120: 433 | S120: 0.225
A121: 10007392 | B121: ZRAW | C121: HEX BOLT DIN933 M20X80; A-193GR.B8T | D121: M20X80 | E121: A193 Gr.B8T | F121: Болт | G121: DIN933 | H121: M20 | I121: 80 | K121: M20x80; | L121: A193 Gr.B8T | P121: Болт M20x80; A193 Gr.B8T | Q121: 10007392 | R121: 433 | S121: 0.225
A122: 10005033 | B122: ZRAW | C122: HEX BOLT DIN933 M20X80; A2 | D122: M20X80 | E122: A2 | F122: Болт | G122: DIN933 | H122: M20 | I122: 80 | K122: M20x80; | L122: A2 | P122: Болт M20x80; A2 | Q122: 10005033 | R122: 433 | S122: 0.199
A123: 10005033 | B123: ZRAW | C123: HEX BOLT DIN933 M20X80; A4 | D123: M20X80 | E123: A4 | F123: Болт | G123: DIN933 | H123: M20 | I123: 80 | K123: M20x80; | L123: A4 | P123: Болт M20x80; A4 | Q123: 10005033 | R123: 433 | S123: 0.225
A124: 10004991 | B124: ZRAW | C124: HEX BOLT DIN933 M24X140; A4 | D124: M24X140 | E124: A4 | F124: Болт | G124: DIN933 | H124: M24 | I124: 140 | K124: M16x140; | L124: A4 | P124: Болт M16x140; A4 | Q124: 10004991
A125: 10004283 | B125: ZRAW | C125: HEX BOLT DIN933 M8X20; 1.4539 | D125: M8X20 | E125: 1.4539/904L | F125: Болт | G125: DIN933 | H125: M8 | I125: 20 | K125: M8x20; | L125: 904L | M125: 904L | N125: 1.4539 | P125: Болт M8x20; 904L | Q125: 10004283
A126: 10004345 | B126: ZRAW | C126: HEX BOLT DIN933 M8X20; A4 | D126: M8X20 | E126: A4 | F126: Болт | G126: DIN933 | H126: M8 | I126: 20 | K126: M8x20; | L126: A4 | P126: Болт M8x20; A4 | Q126: 10004345
A127: 10005013 | B127: ZRAW | C127: HEX BOLT DIN933 M8X25; A2 | D127: M8X25 | E127: A2 | F127: Болт | G127: DIN933 | H127: M8 | I127: 25 | K127: M8x25; | L127: A2 | P127: Болт M8x25; A2 | Q127: 10005013
A128: 10004262 | B128: ZRAW | C128: HEX BOLT DIN933 M8X30; 1.4539 | D128: M8X30 | E128: 1.4539/904L | F128: Болт | G128: DIN933 | H128: M8 | I128: 30 | K128: M8x30; | L128: 904L | M128: 904L | N128: 1.4539 | P128: Болт M8x30; 904L | Q128: 10004262
A129: 10005014 | B129: ZRAW | C129: HEX BOLT DIN933 M8X30; A2 | D129: M8X30 | E129: A2 | F129: Болт | G129: DIN933 | H129: M8 | I129: 30 | K129: M8x30; | L129: A2 | P129: Болт M8x30; A2 | Q129: 10005014
A130: 10004342 | B130: ZRAW | C130: HEX BOLT DIN933 M8X30; A4 | D130: M8X30 | E130: A4 | F130: Болт | G130: DIN933 | H130: M8 | I130: 30 | K130: M8x30; | L130: A4 | P130: Болт M8x30; A4 | Q130: 10004342
A131: 10006343 | B131: ZRAW | C131: HEX NUT DIN934 M10; 1.4006 | D131: M10 | E131: 1.4006/410 | F131: Гайка | G131: DIN934 | H131: M10 | K131: M10; | L131: 410 | M131: 410 | N131: 1.4006 | P131: Гайка M10; 410 | Q131: 10006343 | R131: 401 | S131: 0.012
A132: 10006080 | B132: ZRAW | C132: HEX NUT DIN934 M10; 1.4307 | D132: M10 | E132: 1.4307/304L | F132: Гайка | G132: DIN934 | H132: M10 | K132: M10; | L132: 304L | M132: 304L | N132: 1.4307 | P132: Гайка M10; 304L | Q132: 10006080 | R132: 401 | S132: 0.012
A133: 10006079 | B133: ZRAW | C133: HEX NUT DIN934 M10; 1.4404 | D133: M10 | E133: 1.4404/316L | F133: Гайка | G133: DIN934 | H133: M10 | K133: M10; | L133: 316L | M133: 316L | N133: 1.4404 | P133: Гайка M10; 316L | Q133: 10006079 | R133: 401 | S133: 0.012
A134: 10004274 | B134: ZRAW | C134: HEX NUT DIN934 M10; 1.4539 | D134: M10 | E134: 1.4539/904L | F134: Гайка | G134: DIN934 | H134: M10 | K134: M10; | L134: 904L | M134: 904L | N134: 1.4539 | P134: Гайка M10; 904L | Q134: 10004274 | R134: 401 | S134: 0.012
A135: 10005610 | B135: ZRAW | C135: HEX NUT DIN934 M10; 1.4541 | D135: M10 | E135: 1.4541/321 | F135: Гайка | G135: DIN934 | H135: M10 | K135: M10; | L135: 321 | M135: 321 | N135: 1.4541 | P135: Гайка M10; 321 | Q135: 10005610 | R135: 401 | S135: 0.012
A136: 10006310 | B136: ZRAW | C136: HEX NUT DIN934 M10; 1.4571 | D136: M10 | E136: 1.4571/316Ti | F136: Гайка | G136: DIN934 | H136: M10 | K136: M10; | L136: 316Ti | M136: 316Ti | N136: 1.4571 | P136: Гайка M10; 316Ti | Q136: 10006310 | R136: 401 | S136: 0.012
A137: 10007122 | B137: ZRAW | C137: HEX NUT DIN934 M10; 2.4068 | D137: M10 | E137: 2.4068/ALLOY 201 | F137: Гайка | G137: DIN934 | H137: M10 | K137: M10; | L137: ALLOY 201 | M137: ALLOY 201 | N137: 2.4068 | P137: Гайка M10; ALLOY 201 | Q137: 10007122 | R137: 401 | S137: 0.012
A138: 10006280 | B138: ZRAW | C138: HEX NUT DIN934 M10; 2.4602 | D138: M10 | E138: 2.4602/N06022 | F138: Гайка | G138: DIN934 | H138: M10 | K138: M10; | L138: Hastelloy C22 | N138: 2.4602 | P138: Гайка M10; Hastelloy C22 | Q138: 10006280 | R138: 401 | S138: 0.012
A139: 10005971 | B139: ZRAW | C139: HEX NUT DIN934 M10; 2.4816 | D139: M10 | E139: 2.4816/Alloy600 | F139: Гайка | G139: DIN934 | H139: M10 | K139: M10; | L139: Alloy600 | N139: 2.4816 | P139: Гайка M10; Alloy600 | Q139: 10005971 | R139: 401 | S139: 0.012
A140: 10040231 | B140: ZRAW | C140: HEX NUT DIN934 M10; 3.7025 | D140: M10 | E140: 3.7025/Ti Gr 1 | F140: Гайка | G140: DIN934 | H140: M10 | K140: M10; | L140: Ti Gr 1 | M140: Ti Gr 1 | N140: 3.7025 | P140: Гайка M10; Ti Gr 1 | Q140: 10040231 | R140: 401 | S140: 0.012
A141: 10005495 | B141: ZRAW | C141: HEX NUT DIN934 M10; 8.8 | D141: M10 | E141: 8/CS | F141: Гайка | G141: DIN934 | H141: M10 | K141: M10; | L141: 8.8 | P141: Гайка M10; 8.8 | Q141: 10005495 | R141: 401 | S141: 0.012
A142: 10006678 | B142: ZRAW | C142: HEX NUT DIN934 M10; A-194GR.6 | D142: M10 | E142: A194 Gr.6 | F142: Гайка | G142: DIN934 | H142: M10 | K142: M10; | L142: A194 Gr.6 | P142: Гайка M10; A194 Gr.6 | Q142: 10006678 | R142: 401 | S142: 0.012
A143: 10006674 | B143: ZRAW | C143: HEX NUT DIN934 M10; A-194GR.8 | D143: M10 | E143: A194 Gr.8 | F143: Гайка | G143: DIN934 | H143: M10 | K143: M10; | L143: A194 Gr.8 | P143: Гайка M10; A194 Gr.8 | Q143: 10006674 | R143: 401 | S143: 0.012
A144: 10006677 | B144: ZRAW | C144: HEX NUT DIN934 M10; A-194GR.8M | D144: M10 | E144: A194 Gr.8M | F144: Гайка | G144: DIN934 | H144: M10 | K144: M10; | L144: A194 Gr.8M | P144: Гайка M10; A194 Gr.8M | Q144: 10006677 | R144: 401 | S144: 0.012
A145: 10007361 | B145: ZRAW | C145: HEX NUT DIN934 M10; A-194GR.8T | D145: M10 | E145: A194 Gr.8T | F145: Гайка | G145: DIN934 | H145: M10 | K145: M10; | L145: A194 Gr.8T | P145: Гайка M10; A194 Gr.8T | Q145: 10007361 | R145: 401 | S145: 0.012
A146: 10005044 | B146: ZRAW | C146: HEX NUT DIN934 M10; A2 | D146: M10 | E146: A2 | F146: Гайка | G146: DIN934 | H146: M10 | K146: M10; | L146: A2 | P146: Гайка M10; A2 | Q146: 10005044 | R146: 401 | S146: 0.012
A147: 10004341 | B147: ZRAW | C147: HEX NUT DIN934 M10; A4 | D147: M10 | E147: A4 | F147: Гайка | G147: DIN934 | H147: M10 | K147: M10; | L147: A4 | P147: Гайка M10; A4 | Q147: 10004341 | R147: 401 | S147: 0.012
A148: 10006305 | B148: ZRAW | C148: HEX NUT DIN934 M12; 1.4006 | D148: M12 | E148: 1.4006/410 | F148: Гайка | G148: DIN934 | H148: M12 | K148: M12; | L148: 410 | M148: 410 | N148: 1.4006 | P148: Гайка M12; 410 | Q148: 10006305 | R148: 402 | S148: 0.017
A149: 10005298 | B149: ZRAW | C149: HEX NUT DIN934 M12; 1.4306 | D149: M12 | E149: 1.4306/304L | F149: Гайка | G149: DIN934 | H149: M12 | K149: M12; | L149: 304L | M149: 304L | N149: 1.4307 | P149: Гайка M12; 304L | Q149: 10005298 | R149: 402 | S149: 0.017
A150: 10006069 | B150: ZRAW | C150: HEX NUT DIN934 M12; 1.4404 | D150: M12 | E150: 1.4404/316L | F150: Гайка | G150: DIN934 | H150: M12 | K150: M12; | L150: 316L | M150: 316L | N150: 1.4404 | P150: Гайка M12; 316L | Q150: 10006069 | R150: 402 | S150: 0.017
A151: 10004272 | B151: ZRAW | C151: HEX NUT DIN934 M12; 1.4539 | D151: M12 | E151: 1.4539/904L | F151: Гайка | G151: DIN934 | H151: M12 | K151: M12; | L151: 904L | M151: 904L | N151: 1.4539 | P151: Гайка M12; 904L | Q151: 10004272 | R151: 402 | S151: 0.017
A152: 10005616 | B152: ZRAW | C152: HEX NUT DIN934 M12; 1.4541 | D152: M12 | E152: 1.4541/321 | F152: Гайка | G152: DIN934 | H152: M12 | K152: M12; | L152: 321 | M152: 321 | N152: 1.4541 | P152: Гайка M12; 321 | Q152: 10005616 | R152: 402 | S152: 0.017
A153: 10007357 | B153: ZRAW | C153: HEX NUT DIN934 M12; 1.4571 | D153: M12 | E153: 1.4571/316Ti | F153: Гайка | G153: DIN934 | H153: M12 | K153: M12; | L153: 316Ti | M153: 316Ti | N153: 1.4571 | P153: Гайка M12; 316Ti | Q153: 10007357 | R153: 402 | S153: 0.017
A154: 10006708 | B154: ZRAW | C154: HEX NUT DIN934 M12; 8.8 | D154: M12 | E154: 8.8 | F154: Гайка | G154: DIN934 | H154: M12 | K154: M12; | L154: 8.8 | P154: Гайка M12; 8.8 | Q154: 10006708 | R154: 402 | S154: 0.017
A155: 10006679 | B155: ZRAW | C155: HEX NUT DIN934 M12; A-194GR.6 | D155: M12 | E155: A194 Gr.6 | F155: Гайка | G155: DIN934 | H155: M12 | K155: M12; | L155: A194 Gr.6 | P155: Гайка M12; A194 Gr.6 | Q155: 10006679 | R155: 402 | S155: 0.017
A156: 10006680 | B156: ZRAW | C156: HEX NUT DIN934 M12; A-194GR.8 | D156: M12 | E156: A194 Gr.8 | F156: Гайка | G156: DIN934 | H156: M12 | K156: M12; | L156: A194 Gr.8 | P156: Гайка M12; A194 Gr.8 | Q156: 10006680 | R156: 402 | S156: 0.017
A157: 10006681 | B157: ZRAW | C157: HEX NUT DIN934 M12; A-194GR.8M | D157: M12 | E157: A194 Gr.8M | F157: Гайка | G157: DIN934 | H157: M12 | K157: M12; | L157: A194 Gr.8M | P157: Гайка M12; A194 Gr.8M | Q157: 10006681 | R157: 402 | S157: 0.017
A158: 10007362 | B158: ZRAW | C158: HEX NUT DIN934 M12; A-194GR.8T | D158: M12 | E158: A194 Gr.8T | F158: Гайка | G158: DIN934 | H158: M12 | K158: M12; | L158: A194 Gr.8T | P158: Гайка M12; A194 Gr.8T | Q158: 10007362 | R158: 402 | S158: 0.017
A159: 10005041 | B159: ZRAW | C159: HEX NUT DIN934 M12; A2 | D159: M12 | E159: A2 | F159: Гайка | G159: DIN934 | H159: M12 | K159: M12; | L159: A2 | P159: Гайка M12; A2 | Q159: 10005041 | R159: 402 | S159: 0.017
A160: 10004271 | B160: ZRAW | C160: HEX NUT DIN934 M12; A4 | D160: M12 | E160: A4 | F160: Гайка | G160: DIN934 | H160: M12 | K160: M12; | L160: A4 | P160: Гайка M12; A4 | Q160: 10004271 | R160: 402 | S160: 0.017
A161: 10006532 | B161: ZRAW | C161: HEX NUT DIN934 M12; TANTAL | D161: M12 | E161: Tantal/R05200 | F161: Гайка | G161: DIN934 | H161: M12 | K161: M12; | L161: Tantal | P161: Гайка M12; Tantal | Q161: 10006532 | R161: 402 | S161: 0.017
A162: 10005598 | B162: ZRAW | C162: HEX NUT DIN934 M14; 1.4006 | D162: M14 | E162: 1.4006/410 | F162: Гайка | G162: DIN934 | H162: M14 | K162: M14; | L162: 410 | M162: 410 | N162: 1.4006 | P162: Гайка M14; 410 | Q162: 10005598 | S162: 0.022
A163: 10006308 | B163: ZRAW | C163: HEX NUT DIN934 M14; A4 | D163: M14 | E163: A4 | F163: Гайка | G163: DIN934 | H163: M14 | K163: M14; | L163: A4 | P163: Гайка M14; A4 | Q163: 10006308 | S163: 0.022
A164: 10006271 | B164: ZRAW | C164: HEX NUT DIN934 M16; 1.4006 | D164: M16 | E164: 1.4006/410 | F164: Гайка | G164: DIN934 | H164: M16 | K164: M16; | L164: 410 | M164: 410 | N164: 1.4006 | P164: Гайка M16; 410 | Q164: 10006271 | R164: 403 | S164: 0.033
A165: 10005284 | B165: ZRAW | C165: HEX NUT DIN934 M16; 1.4306 | D165: M16 | E165: 1.4306/304L | F165: Гайка | G165: DIN934 | H165: M16 | K165: M16; | L165: 304L | M165: 304L | N165: 1.4307 | P165: Гайка M16; 304L | Q165: 10005284 | R165: 403 | S165: 0.033
A166: 10006075 | B166: ZRAW | C166: HEX NUT DIN934 M16; 1.4404 | D166: M16 | E166: 1.4404/316L | F166: Гайка | G166: DIN934 | H166: M16 | K166: M16; | L166: 316L | M166: 316L | N166: 1.4404 | P166: Гайка M16; 316L | Q166: 10006075 | R166: 403 | S166: 0.033
A167: 10004273 | B167: ZRAW | C167: HEX NUT DIN934 M16; 1.4539 | D167: M16 | E167: 1.4539/904L | F167: Гайка | G167: DIN934 | H167: M16 | K167: M16; | L167: 904L | M167: 904L | N167: 1.4539 | P167: Гайка M16; 904L | Q167: 10004273 | R167: 403 | S167: 0.033
A168: 10005594 | B168: ZRAW | C168: HEX NUT DIN934 M16; 1.4541 | D168: M16 | E168: 1.4541/321 | F168: Гайка | G168: DIN934 | H168: M16 | K168: M16; | L168: 321 | M168: 321 | N168: 1.4541 | P168: Гайка M16; 321 | Q168: 10005594 | R168: 403 | S168: 0.033
A169: 10005326 | B169: ZRAW | C169: HEX NUT DIN934 M16; 1.4571 | D169: M16 | E169: 1.4571/316Ti | F169: Гайка | G169: DIN934 | H169: M16 | K169: M16; | L169: 316Ti | M169: 316Ti | N169: 1.4571 | P169: Гайка M16; 316Ti | Q169: 10005326 | R169: 403 | S169: 0.033
A170: 10004482 | B170: ZRAW | C170: HEX NUT DIN934 M16; 3.7225 | D170: M16 | E170: 3.7225/Ti Gr 11 | F170: Гайка | G170: DIN934 | H170: M16 | K170: M16; | L170: Ti Gr 11 | N170: 3.7225 | P170: Гайка M16; Ti Gr 11 | Q170: 10004482 | R170: 403 | S170: 0.033
A171: 10005494 | B171: ZRAW | C171: HEX NUT DIN934 M16; 8.8 | D171: M16 | E171: 8/CS | F171: Гайка | G171: DIN934 | H171: M16 | K171: M16; | L171: 8.8 | P171: Гайка M16; 8.8 | Q171: 10005494 | R171: 403 | S171: 0.033
A172: 10006673 | B172: ZRAW | C172: HEX NUT DIN934 M16; A-194GR.6 | D172: M16 | E172: A194 Gr.6 | F172: Гайка | G172: DIN934 | H172: M16 | K172: M16; | L172: A194 Gr.6 | P172: Гайка M16; A194 Gr.6 | Q172: 10006673 | R172: 403 | S172: 0.033
A173: 10006683 | B173: ZRAW | C173: HEX NUT DIN934 M16; A-194GR.8 | D173: M16 | E173: A194 Gr.8 | F173: Гайка | G173: DIN934 | H173: M16 | K173: M16; | L173: A194 Gr.8 | P173: Гайка M16; A194 Gr.8 | Q173: 10006683 | R173: 403 | S173: 0.033
A174: 10006682 | B174: ZRAW | C174: HEX NUT DIN934 M16; A-194GR.8M | D174: M16 | E174: A194 Gr.8M | F174: Гайка | G174: DIN934 | H174: M16 | K174: M16; | L174: A194 Gr.8M | P174: Гайка M16; A194 Gr.8M | Q174: 10006682 | R174: 403 | S174: 0.033
A175: 10006531 | B175: ZRAW | C175: HEX NUT DIN934 M16; A-194GR.8MA | D175: M16 | E175: A194 Gr.8MA | F175: Гайка | G175: DIN934 | H175: M16 | K175: M16; | L175: A194 Gr.8MA | P175: Гайка M16; A194 Gr.8MA | Q175: 10006531 | R175: 403 | S175: 0.033
A176: 10007365 | B176: ZRAW | C176: HEX NUT DIN934 M16; A-194GR.8T | D176: M16 | E176: A194 Gr.8T | F176: Гайка | G176: DIN934 | H176: M16 | K176: M16; | L176: A194 Gr.8T | P176: Гайка M16; A194 Gr.8T | Q176: 10007365 | R176: 403 | S176: 0.033
A177: 10004343 | B177: ZRAW | C177: HEX NUT DIN934 M16; A2 | D177: M16 | E177: A2 | F177: Гайка | G177: DIN934 | H177: M16 | K177: M16; | L177: A2 | P177: Гайка M16; A2 | Q177: 10004343 | R177: 403 | S177: 0.033
A178: 10004346 | B178: ZRAW | C178: HEX NUT DIN934 M16; A4 | D178: M16 | E178: A4 | F178: Гайка | G178: DIN934 | H178: M16 | K178: M16; | L178: A4 | P178: Гайка M16; A4 | Q178: 10004346 | R178: 403 | S178: 0.033
A179: 10006323 | B179: ZRAW | C179: HEX NUT DIN934 M20; 1.4006 | D179: M20 | E179: 1.4006/410 | F179: Гайка | G179: DIN934 | H179: M20 | K179: M20; | L179: 410 | M179: 410 | N179: 1.4006 | P179: Гайка M20; 410 | Q179: 10006323 | R179: 404 | S179: 0.071
A180: 10006076 | B180: ZRAW | C180: HEX NUT DIN934 M20; 1.4307 | D180: M20 | E180: 1.4307/304L | F180: Гайка | G180: DIN934 | H180: M20 | K180: M20; | L180: 304L | M180: 304L | N180: 1.4307 | P180: Гайка M20; 304L | Q180: 10006076 | R180: 404 | S180: 0.071
A181: 10006072 | B181: ZRAW | C181: HEX NUT DIN934 M20; 1.4404 | D181: M20 | E181: 1.4404/316L | F181: Гайка | G181: DIN934 | H181: M20 | K181: M20; | L181: 316L | M181: 316L | N181: 1.4404 | P181: Гайка M20; 316L | Q181: 10006072 | R181: 404 | S181: 0.071
A182: 10006282 | B182: ZRAW | C182: HEX NUT DIN934 M20; 1.4539 | D182: M20 | E182: 1.4539/904L | F182: Гайка | G182: DIN934 | H182: M20 | K182: M20; | L182: 904L | M182: 904L | N182: 1.4539 | P182: Гайка M20; 904L | Q182: 10006282 | R182: 404 | S182: 0.071
A183: 10006129 | B183: ZRAW | C183: HEX NUT DIN934 M20; 1.4541 | D183: M20 | E183: 1.4541/321 | F183: Гайка | G183: DIN934 | H183: M20 | K183: M20; | L183: 321 | M183: 321 | N183: 1.4541 | P183: Гайка M20; 321 | Q183: 10006129 | R183: 404 | S183: 0.071
A184: 10006782 | B184: ZRAW | C184: HEX NUT DIN934 M20; 8.8 | D184: M20 | E184: 8.8 | F184: Гайка | G184: DIN934 | H184: M20 | K184: M20; | L184: 8.8 | P184: Гайка M20; 8.8 | Q184: 10006782 | R184: 404 | S184: 0.071
A185: 10006767 | B185: ZRAW | C185: HEX NUT DIN934 M20; A-194GR.6 | D185: M20 | E185: A194 Gr.6 | F185: Гайка | G185: DIN934 | H185: M20 | K185: M20; | L185: A194 Gr.6 | P185: Гайка M20; A194 Gr.6 | Q185: 10006767 | R185: 404 | S185: 0.071
A186: 10006728 | B186: ZRAW | C186: HEX NUT DIN934 M20; A-194GR.8 | D186: M20 | E186: A194 Gr.8 | F186: Гайка | G186: DIN934 | H186: M20 | K186: M20; | L186: A194 Gr.8 | P186: Гайка M20; A194 Gr.8 | Q186: 10006728 | R186: 404 | S186: 0.071
A187: 10005043 | B187: ZRAW | C187: HEX NUT DIN934 M20; A2 | D187: M20 | E187: A2 | F187: Гайка | G187: DIN934 | H187: M20 | K187: M20; | L187: A2 | P187: Гайка M20; A2 | Q187: 10005043 | R187: 404 | S187: 0.071
A188: 10004558 | B188: ZRAW | C188: HEX NUT DIN934 M20; A4 | D188: M20 | E188: A4 | F188: Гайка | G188: DIN934 | H188: M20 | K188: M20; | L188: A4 | P188: Гайка M20; A4 | Q188: 10004558 | R188: 404 | S188: 0.071
A189: 10006894 | B189: ZRAW | C189: HEX NUT DIN934 M24; '1.4435 | D189: M24 | E189: 1.4435/316L | F189: Гайка | G189: DIN934 | H189: M24 | K189: M24; | L189: 316L | M189: 316L | N189: 1.4404 | P189: Гайка M24; 316L | Q189: 10006894 | R189: 405 | S189: 0.11
A190: 10007477 | B190: ZRAW | C190: HEX NUT DIN934 M24; 1.4541 | D190: M24 | E190: 1.4541/321 | F190: Гайка | G190: DIN934 | H190: M24 | K190: M24; | L190: 321 | M190: 321 | N190: 1.4541 | P190: Гайка M24; 321 | Q190: 10007477 | R190: 405 | S190: 0.11
A191: 10005636 | B191: ZRAW | C191: HEX NUT DIN934 M24; A2 | D191: M24 | E191: A2 | F191: Гайка | G191: DIN934 | H191: M24 | K191: M24; | L191: A2 | P191: Гайка M24; A2 | Q191: 10005636 | R191: 405 | S191: 0.11
A192: 10005040 | B192: ZRAW | C192: HEX NUT DIN934 M24; A4 | D192: M24 | E192: A4 | F192: Гайка | G192: DIN934 | H192: M24 | K192: M24; | L192: A4 | P192: Гайка M24; A4 | Q192: 10005040 | R192: 405 | S192: 0.11
A193: 10006340 | B193: ZRAW | C193: HEX NUT DIN934 M8; 1.4006 | D193: M8 | E193: 1.4006/410 | F193: Гайка | G193: DIN934 | H193: M8 | K193: M8; | L193: 410 | M193: 410 | N193: 1.4006 | P193: Гайка M8; 410 | Q193: 10006340 | R193: 400 | S193: 0.005
A194: 10004276 | B194: ZRAW | C194: HEX NUT DIN934 M8; 1.4539 | D194: M8 | E194: 1.4539/904L | F194: Гайка | G194: DIN934 | H194: M8 | K194: M8; | L194: 904L | M194: 904L | N194: 1.4539 | P194: Гайка M8; 904L | Q194: 10004276 | R194: 400 | S194: 0.005
A195: 10006263 | B195: ZRAW | C195: HEX NUT DIN934 M8; 1.4571 | D195: M8 | E195: 1.4571/316Ti | F195: Гайка | G195: DIN934 | H195: M8 | K195: M8; | L195: 316Ti | M195: 316Ti | N195: 1.4571 | P195: Гайка M8; 316Ti | Q195: 10006263 | R195: 400 | S195: 0.005
A196: 10005388 | B196: ZRAW | C196: HEX NUT DIN934 M8; A-194GR.8M | D196: M8 | E196: A194 Gr.8M | F196: Гайка | G196: DIN934 | H196: M8 | K196: M8; | L196: A194 Gr.8M | P196: Гайка M8; A194 Gr.8M | Q196: 10005388 | R196: 400 | S196: 0.005
A197: 10005045 | B197: ZRAW | C197: HEX NUT DIN934 M8; A2 | D197: M8 | E197: A2 | F197: Гайка | G197: DIN934 | H197: M8 | K197: M8; | L197: A2 | P197: Гайка M8; A2 | Q197: 10005045 | R197: 400 | S197: 0.005
A198: 10004275 | B198: ZRAW | C198: HEX NUT DIN934 M8; A4 | D198: M8 | E198: A4 | F198: Гайка | G198: DIN934 | H198: M8 | K198: M8; | L198: A4 | P198: Гайка M8; A4 | Q198: 10004275 | R198: 400 | S198: 0.005
A199: 10036302 | B199: ZRAW | C199: PIPE SEAMLESS 219X4; 12CR18NI10TI RU | D199: 219X4 | E199: 12CR18NI10TI | F199: Труба | G199: бесшовная | H199: 219 | I199: 4; | K199: 219X4; | L199: 12Х18Н10Т | M199: 321 | O199: 12Х18Н10Т | P199: Труба 219X4; 12Х18Н10Т | Q199: 10036302 | S199: 21.544
A200: 10036303 | B200: ZRAW | C200: PIPE SEAMLESS 273X4; 12CR18NI10TI RU | D200: 273X4 | E200: 12CR18NI10TI | F200: Труба | G200: бесшовная | H200: 273 | I200: 4; | K200: 273X4; | L200: 12Х18Н10Т | M200: 321 | O200: 12Х18Н10Т | P200: Труба 273X4; 12Х18Н10Т | Q200: 10036303 | S200: 26.943
... 386 more rows

Sheet ZSEM
A1: Material # | B1: Material type | C1: Description | D1: Size/dimention | E1: Basic material | F1: Наименование | G1: Доп. Параметр | H1: Размер 1 | I1: Размер 2 | J1: Размер 3 | K1: Запись типоразмера | L1: Базовый материал | M1: Материал ANSI/ASTM | N1: Материал EN | O1: Материал ГОСТ | P1: Материал в спецификации | Q1: Артикул 1С | R1: Поз.№ | S1: Удельный вес | T1: Column20 | U1: Column21 | V1: Column22
A2: 10045160 | B2: ZSEM | C2: ANGLE 30X3X40 WITH NUT M10; 1.4307 | D2: 30X3X40 | E2: 1.4307/304L | F2: Уголок | H2: 30 | I2: 40 | J2: 3 | K2: 30x40x3; | L2: 304L | M2: 304L | N2: 1.4307 | P2: Уголок 30x40x3; 304L | Q2: 10045160 | S2: 0.05
A3: 10041379 | B3: ZSEM | C3: ANGLE 30X3X40 WITH NUT M10; 1.4404 | D3: 30X3X40 | E3: 1.4404/316L | F3: Уголок | H3: 30 | I3: 40 | J3: 3 | K3: 30x40x3; | L3: 316L | M3: 316L | N3: 1.4404 | P3: Уголок 30x40x3; 316L | Q3: 10041379 | S3: 0.05
A4: 10044789 | B4: ZSEM | C4: Bolting Plate | D4: 33x33x1.5 | E4: 316L | F4: Крепежная_пластина | H4: 33 | I4: 33 | J4: 1.5 | K4: 33x33x1.5; | L4: 316L | M4: 316L | N4: 1.4404 | P4: Крепежная_пластина 33x33x1.5; 316L | Q4: 10044789 | S4: 0.01
A5: 10024794 | B5: ZSEM | C5: CONDUCTING ELEMENT A=29; 1.4000 | D5: A=29 | E5: 1.4000/410S | F5: Направляющая_потока | H5: 29 | K5: A=29; | L5: 410S | M5: 410S | N5: 1.4 | P5: Направляющая_потока A=29; 410S | Q5: 10024794 | S5: 0.135
A6: 10002530 | B6: ZSEM | C6: CONDUCTING ELEMENT A=29; 1.4404 | D6: A=29 | E6: 1.4404/316L | F6: Направляющая_потока | H6: 29 | K6: A=29; | L6: 316L | M6: 316L | N6: 1.4404 | P6: Направляющая_потока A=29; 316L | Q6: 10002530 | S6: 0.135
A7: 10039813 | B7: ZSEM | C7: CONDUCTING ELEMENT A=29; 1.4539 | D7: A=29 | E7: 1.4539/904L | F7: Направляющая_потока | H7: 29 | K7: A=29; | L7: 904L | M7: 904L | N7: 1.4539 | P7: Направляющая_потока A=29; 904L | Q7: 10039813 | S7: 0.135
A8: 10024791 | B8: ZSEM | C8: CONDUCTING ELEMENT A=29; 1.4571 | D8: A=29 | E8: 1.4571/316Ti | F8: Направляющая_потока | H8: 29 | K8: A=29; | L8: 316Ti | M8: 316Ti | N8: 1.4571 | P8: Направляющая_потока A=29; 316Ti | Q8: 10024791 | S8: 0.135
A9: 10009032 | B9: ZSEM | C9: CONDUCTING ELEMENT A=29; 410S | D9: B=29 | E9: 410S | F9: Направляющая_потока | H9: 29 | K9: A=29; | L9: 410S | M9: 410S | N9: 1.4 | P9: Направляющая_потока A=29; 410S | Q9: 10009032 | S9: 0.135
A10: 10024793 | B10: ZSEM | C10: CONDUCTING ELEMENT A=39; 1.4000 | D10: A=39 | E10: 1.4000/410S | F10: Направляющая_потока | H10: 39 | K10: A=39; | L10: 410S | M10: 410S | N10: 1.4 | P10: Направляющая_потока A=39; 410S | Q10: 10024793 | S10: 0.135
A11: 10002546 | B11: ZSEM | C11: CONDUCTING ELEMENT A=39; 1.4404 | D11: A=39 | E11: 1.4404/316L | F11: Направляющая_потока | H11: 39 | K11: A=39; | L11: 316L | M11: 316L | N11: 1.4404 | P11: Направляющая_потока A=39; 316L | Q11: 10002546 | S11: 0.135
A12: 10002544 | B12: ZSEM | C12: CONDUCTING ELEMENT A=59; 1.4404 | D12: A=59 | E12: 1.4404/316L | F12: Направляющая_потока | H12: 59 | K12: A=59; | L12: 316L | M12: 316L | N12: 1.4404 | P12: Направляющая_потока A=59; 316L | Q12: 10002544 | S12: 0.135
A13: 10039814 | B13: ZSEM | C13: CONDUCTING ELEMENT A=59; 1.4539 | D13: A=59 | E13: 1.4539/904L | F13: Направляющая_потока | H13: 59 | K13: A=59; | L13: 904L | M13: 904L | N13: 1.4539 | P13: Направляющая_потока A=59; 904L | Q13: 10039814 | S13: 0.135
A14: 10002706 | B14: ZSEM | C14: CONDUCTING ELEMENT A=79; 1.4404 | D14: A=79 | E14: 1.4404/316L | F14: Направляющая_потока | H14: 79 | K14: A=79; | L14: 316L | M14: 316L | N14: 1.4404 | P14: Направляющая_потока A=79; 316L | Q14: 10002706 | S14: 0.28
A15: 10007808 | B15: ZSEM | C15: CURL TUBE LEFT SMALL L150/60; 1.4307 | D15: L=150/60 | E15: 1.4307/304L | F15: Трубка_витая | G15: левая | H15: L150 | I15: 60 | K15: левая L150/60; | L15: 304L | M15: 304L | N15: 1.4307 | P15: Трубка_витая левая L150/60; 304L | Q15: 10007808 | S15: 0.2
A16: 10003095 | B16: ZSEM | C16: CURL TUBE LEFT SMALL L150/60; 1.4404 | D16: L=150/60 | E16: 1.4404/316L | F16: Трубка_витая | G16: левая | H16: L150 | I16: 60 | K16: левая L150/60; | L16: 316L | M16: 316L | N16: 1.4404 | P16: Трубка_витая левая L150/60; 316L | Q16: 10003095 | S16: 0.2
A17: 10003799 | B17: ZSEM | C17: CURL TUBE LEFT SMALL L200/60; 1.4307 | D17: L=200/60 | E17: 1.4307/304L | F17: Трубка_витая | G17: левая | H17: L200 | I17: 60 | K17: левая L200/60; | L17: 304L | M17: 304L | N17: 1.4307 | P17: Трубка_витая левая L200/60; 304L | Q17: 10003799 | S17: 0.136
A18: 10002543 | B18: ZSEM | C18: CURL TUBE LEFT SMALL L200/60; 1.4404 | D18: L=200/60 | E18: 1.4404/316L | F18: Трубка_витая | G18: левая | H18: L200 | I18: 60 | K18: левая L200/60; | L18: 316L | M18: 316L | N18: 1.4404 | P18: Трубка_витая левая L200/60; 316L | Q18: 10002543 | S18: 0.136
A19: 10011586 | B19: ZSEM | C19: CURL TUBE LEFT SMALL L250/60; 1.4307 | D19: L=250/60 | E19: 1.4307/304L | F19: Трубка_витая | G19: левая | H19: L250 | I19: 60 | K19: левая L250/60; | L19: 304L | M19: 304L | N19: 1.4307 | P19: Трубка_витая левая L250/60; 304L | Q19: 10011586 | S19: 0.17
A20: 10002555 | B20: ZSEM | C20: CURL TUBE LEFT SMALL L250/60; 1.4404 | D20: L=250/60 | E20: 1.4404/316L | F20: Трубка_витая | G20: левая | H20: L250 | I20: 60 | K20: левая L250/60; | L20: 316L | M20: 316L | N20: 1.4404 | P20: Трубка_витая левая L250/60; 316L | Q20: 10002555 | S20: 0.17
A21: 10003000 | B21: ZSEM | C21: CURL TUBE LEFT SMALL L270/60; 1.4404 | D21: L=270/60 | E21: 1.4404/316L | F21: Трубка_витая | G21: левая | H21: L270 | I21: 60 | K21: левая L270/60; | L21: 316L | M21: 316L | N21: 1.4404 | P21: Трубка_витая левая L270/60; 316L | Q21: 10003000 | S21: 0.19
A22: 10002556 | B22: ZSEM | C22: CURL TUBE LEFT SMALL L350/60; 1.4404 | D22: L=350/60 | E22: 1.4404/316L | F22: Трубка_витая | G22: левая | H22: L350 | I22: 60 | K22: левая L350/60; | L22: 316L | M22: 316L | N22: 1.4404 | P22: Трубка_витая левая L350/60; 316L | Q22: 10002556 | S22: 0.238
A23: 10007807 | B23: ZSEM | C23: CURL TUBE RIGHT SMALL L150/60; 1.4307 | D23: L=150/60 | E23: 1.4307/304L | F23: Трубка_витая | G23: правая | H23: L150 | I23: 60 | K23: правая L150/60; | L23: 304L | M23: 304L | N23: 1.4307 | P23: Трубка_витая правая L150/60; 304L | Q23: 10007807 | S23: 0.2
A24: 10003100 | B24: ZSEM | C24: CURL TUBE RIGHT SMALL L150/60; 1.4404 | D24: L=150/60 | E24: 1.4404/316L | F24: Трубка_витая | G24: правая | H24: L150 | I24: 60 | K24: правая L150/60; | L24: 316L | M24: 316L | N24: 1.4404 | P24: Трубка_витая правая L150/60; 316L | Q24: 10003100 | S24: 0.2
A25: 10003801 | B25: ZSEM | C25: CURL TUBE RIGHT SMALL L200/60; 1.4307 | D25: L=200/60 | E25: 1.4307/304L | F25: Трубка_витая | G25: правая | H25: L200 | I25: 60 | K25: правая L200/60; | L25: 304L | M25: 304L | N25: 1.4307 | P25: Трубка_витая правая L200/60; 304L | Q25: 10003801 | S25: 0.136
A26: 10002529 | B26: ZSEM | C26: CURL TUBE RIGHT SMALL L200/60; 1.4404 | D26: L=200/60 | E26: 1.4404/316L | F26: Трубка_витая | G26: правая | H26: L200 | I26: 60 | K26: правая L200/60; | L26: 316L | M26: 316L | N26: 1.4404 | P26: Трубка_витая правая L200/60; 316L | Q26: 10002529 | S26: 0.136
A27: 10011587 | B27: ZSEM | C27: CURL TUBE RIGHT SMALL L250/60; 1.4307 | D27: L=250/60 | E27: 1.4307/304L | F27: Трубка_витая | G27: правая | H27: L250 | I27: 60 | K27: правая L250/60; | L27: 304L | M27: 304L | N27: 1.4307 | P27: Трубка_витая правая L250/60; 304L | Q27: 10011587 | S27: 0.17
A28: 10002558 | B28: ZSEM | C28: CURL TUBE RIGHT SMALL L250/60; 1.4404 | D28: L=250/60 | E28: 1.4404/316L | F28: Трубка_витая | G28: правая | H28: L250 | I28: 60 | K28: правая L250/60; | L28: 316L | M28: 316L | N28: 1.4404 | P28: Трубка_витая правая L250/60; 316L | Q28: 10002558 | S28: 0.17
A29: 10002999 | B29: ZSEM | C29: CURL TUBE RIGHT SMALL L270/60; 1.4404 | D29: L=270/60 | E29: 1.4404/316L | F29: Трубка_витая | G29: правая | H29: L270 | I29: 60 | K29: правая L270/60; | L29: 316L | M29: 316L | N29: 1.4404 | P29: Трубка_витая правая L270/60; 316L | Q29: 10002999 | S29: 0.19
A30: 10002542 | B30: ZSEM | C30: CURL TUBE RIGHT SMALL L350/60; 1.4404 | D30: L=350/60 | E30: 1.4404/316L | F30: Трубка_витая | G30: правая | H30: L350 | I30: 60 | K30: правая L350/60; | L30: 316L | M30: 316L | N30: 1.4404 | P30: Трубка_витая правая L350/60; 316L | Q30: 10002542 | S30: 0.238
A31: 10002790 | B31: ZSEM | C31: DOMED SIKKING PLATE 47X27X2; 1.4000 | D31: 47X27X2 | E31: 1.4000/410S | F31: Выпуклая_пластина | H31: 47 | I31: 27 | J31: 2 | K31: 47x27x2; | L31: 410S | M31: 410S | N31: 1.4 | P31: Выпуклая_пластина 47x27x2; 410S | Q31: 10002790 | R31: 328 | S31: 0.02
A32: 10002794 | B32: ZSEM | C32: DOMED SIKKING PLATE 47X27X2; 1.4307 | D32: 47X27X2 | E32: 1.4307/304L | F32: Выпуклая_пластина | H32: 47 | I32: 27 | J32: 2 | K32: 47x27x2; | L32: 304L | M32: 304L | N32: 1.4307 | P32: Выпуклая_пластина 47x27x2; 304L | Q32: 10002794 | R32: 328 | S32: 0.02
A33: 10002627 | B33: ZSEM | C33: DOMED SIKKING PLATE 47X27X2; 1.4404 | D33: 47X27X2 | E33: 1.4404/316L | F33: Выпуклая_пластина | H33: 47 | I33: 27 | J33: 2 | K33: 47x27x2; | L33: 316L | M33: 316L | N33: 1.4404 | P33: Выпуклая_пластина 47x27x2; 316L | Q33: 10002627 | R33: 328 | S33: 0.02
A34: 10002731 | B34: ZSEM | C34: DOMED SIKKING PLATE 47X27X2; 1.4539 | D34: 47X27X2 | E34: 1.4539/904L | F34: Выпуклая_пластина | H34: 47 | I34: 27 | J34: 2 | K34: 47x27x2; | L34: 904L | M34: 904L | N34: 1.4539 | P34: Выпуклая_пластина 47x27x2; 904L | Q34: 10002731 | R34: 328 | S34: 0.02
A35: 10003444 | B35: ZSEM | C35: DOMED SIKKING PLATE 47X27X2; 1.4541 | D35: 47X27X2 | E35: 1.4541/321 | F35: Выпуклая_пластина | H35: 47 | I35: 27 | J35: 2 | K35: 47x27x2; | L35: 321 | M35: 321 | N35: 1.4541 | P35: Выпуклая_пластина 47x27x2; 321 | Q35: 10003444 | R35: 328 | S35: 0.02
A36: 10002749 | B36: ZSEM | C36: DOMED SIKKING PLATE 47X27X2; 1.4571 | D36: 47X27X2 | E36: 1.4571/316Ti | F36: Выпуклая_пластина | H36: 47 | I36: 27 | J36: 2 | K36: 47x27x2; | L36: 316Ti | M36: 316Ti | N36: 1.4571 | P36: Выпуклая_пластина 47x27x2; 316Ti | Q36: 10002749 | R36: 328 | S36: 0.02
A37: 10008881 | B37: ZSEM | C37: DOMED SIKKING PLATE 47X27X2; 304 | D37: 47X27X2 | E37: 304 | F37: Выпуклая_пластина | H37: 47 | I37: 27 | J37: 2 | K37: 47x27x2; | L37: 304 | P37: Выпуклая_пластина 47x27x2; 304 | Q37: 10008881 | R37: 328 | S37: 0.02
A38: 10008882 | B38: ZSEM | C38: DOMED SIKKING PLATE 47X27X2; 304L | D38: 47X27X2 | E38: 304L | F38: Выпуклая_пластина | H38: 47 | I38: 27 | J38: 2 | K38: 47x27x2; | L38: 304L | P38: Выпуклая_пластина 47x27x2; 304L | Q38: 10008882 | R38: 328 | S38: 0.02
A39: 10008883 | B39: ZSEM | C39: DOMED SIKKING PLATE 47X27X2; 316 | D39: 47X27X2 | E39: 316 | F39: Выпуклая_пластина | H39: 47 | I39: 27 | J39: 2 | K39: 47x27x2; | L39: 316 | P39: Выпуклая_пластина 47x27x2; 316 | Q39: 10008883 | R39: 328 | S39: 0.02
A40: 10008884 | B40: ZSEM | C40: DOMED SIKKING PLATE 47X27X2; 316L | D40: 47X27X2 | E40: 316L | F40: Выпуклая_пластина | H40: 47 | I40: 27 | J40: 2 | K40: 47x27x2; | L40: 316L | P40: Выпуклая_пластина 47x27x2; 316L | Q40: 10008884 | R40: 328 | S40: 0.02
A41: 10008885 | B41: ZSEM | C41: DOMED SIKKING PLATE 47X27X2; 410S | D41: 47X27X2 | E41: 410S | F41: Выпуклая_пластина | H41: 47 | I41: 27 | J41: 2 | K41: 47x27x2; | L41: 410S | P41: Выпуклая_пластина 47x27x2; 410S | Q41: 10008885 | R41: 328 | S41: 0.02
A42: 10003451 | B42: ZSEM | C42: DOMED WASHER 11/32X2; 1.0038 | D42: 11/32X2 | E42: 1.0038/CS | F42: Выпуклая_шайба | H42: 11 | I42: 32 | J42: 2 | K42: 11/32x2; | L42: CS | N42: 1.0038 | P42: Выпуклая_шайба 11/32x2; CS | Q42: 10003451 | R42: 484 | S42: 0.011
A43: 10002640 | B43: ZSEM | C43: DOMED WASHER 11/32X2; 1.4000 | D43: 11/32X2 | E43: 1.4000/410S | F43: Выпуклая_шайба | H43: 11 | I43: 32 | J43: 2 | K43: 11/32x2; | L43: 410S | M43: 410S | N43: 1.4 | P43: Выпуклая_шайба 11/32x2; 410S | Q43: 10002640 | R43: 484 | S43: 0.011
A44: 10002704 | B44: ZSEM | C44: DOMED WASHER 11/32X2; 1.4307 | D44: 11/32X2 | E44: 1.4307/304L | F44: Выпуклая_шайба | H44: 11 | I44: 32 | J44: 2 | K44: 11/32x2; | L44: 304L | M44: 304L | N44: 1.4307 | P44: Выпуклая_шайба 11/32x2; 304L | Q44: 10002704 | R44: 484 | S44: 0.011
A45: 10002637 | B45: ZSEM | C45: DOMED WASHER 11/32X2; 1.4404 | D45: 11/32X2 | E45: 1.4404/316L | F45: Выпуклая_шайба | H45: 11 | I45: 32 | J45: 2 | K45: 11/32x2; | L45: 316L | M45: 316L | N45: 1.4404 | P45: Выпуклая_шайба 11/32x2; 316L | Q45: 10002637 | R45: 484 | S45: 0.011
A46: 10002748 | B46: ZSEM | C46: DOMED WASHER 11/32X2; 1.4539 | D46: 11/32X2 | E46: 1.4539/904L | F46: Выпуклая_шайба | H46: 11 | I46: 32 | J46: 2 | K46: 11/32x2; | L46: 904L | M46: 904L | N46: 1.4539 | P46: Выпуклая_шайба 11/32x2; 904L | Q46: 10002748 | R46: 484 | S46: 0.011
A47: 10002969 | B47: ZSEM | C47: DOMED WASHER 11/32X2; 1.4541 | D47: 11/32X2 | E47: 1.4541/321 | F47: Выпуклая_шайба | H47: 11 | I47: 32 | J47: 2 | K47: 11/32x2; | L47: 321 | M47: 321 | N47: 1.4541 | P47: Выпуклая_шайба 11/32x2; 321 | Q47: 10002969 | R47: 484 | S47: 0.011
A48: 10002752 | B48: ZSEM | C48: DOMED WASHER 11/32X2; 1.4571 | D48: 11/32X2 | E48: 1.4571/316Ti | F48: Выпуклая_шайба | H48: 11 | I48: 32 | J48: 2 | K48: 11/32x2; | L48: 316Ti | M48: 316Ti | N48: 1.4571 | P48: Выпуклая_шайба 11/32x2; 316Ti | Q48: 10002752 | R48: 484 | S48: 0.011
A49: 10008887 | B49: ZSEM | C49: DOMED WASHER 11/32X2; 304 | D49: 11/32X2 | E49: 304 | F49: Выпуклая_шайба | H49: 11 | I49: 32 | J49: 2 | K49: 11/32x2; | L49: 304 | P49: Выпуклая_шайба 11/32x2; 304 | Q49: 10008887 | R49: 484 | S49: 0.011
A50: 10015743 | B50: ZSEM | C50: DOMED WASHER 11/32X2; 304 CN | D50: 11/32X2 | E50: 304 | F50: Выпуклая_шайба | H50: 11 | I50: 32 | J50: 2 | K50: 11/32x2; | L50: 304 | P50: Выпуклая_шайба 11/32x2; 304 | Q50: 10015743 | R50: 484 | S50: 0.011
A51: 10008888 | B51: ZSEM | C51: DOMED WASHER 11/32X2; 304L | D51: 11/32X2 | E51: 304L | F51: Выпуклая_шайба | H51: 11 | I51: 32 | J51: 2 | K51: 11/32x2; | L51: 304L | P51: Выпуклая_шайба 11/32x2; 304L | Q51: 10008888 | R51: 484 | S51: 0.011
A52: 10015745 | B52: ZSEM | C52: DOMED WASHER 11/32X2; 304L CN | D52: 11/32X2 | E52: 304L | F52: Выпуклая_шайба | H52: 11 | I52: 32 | J52: 2 | K52: 11/32x2; | L52: 304L | P52: Выпуклая_шайба 11/32x2; 304L | Q52: 10015745 | R52: 484 | S52: 0.011
A53: 10008889 | B53: ZSEM | C53: DOMED WASHER 11/32X2; 316 | D53: 11/32X2 | E53: 316 | F53: Выпуклая_шайба | H53: 11 | I53: 32 | J53: 2 | K53: 11/32x2; | L53: 316 | P53: Выпуклая_шайба 11/32x2; 316 | Q53: 10008889 | R53: 484 | S53: 0.011
A54: 10008890 | B54: ZSEM | C54: DOMED WASHER 11/32X2; 316L | D54: 11/32X2 | E54: 316L | F54: Выпуклая_шайба | H54: 11 | I54: 32 | J54: 2 | K54: 11/32x2; | L54: 316L | P54: Выпуклая_шайба 11/32x2; 316L | Q54: 10008890 | R54: 484 | S54: 0.011
A55: 10015748 | B55: ZSEM | C55: DOMED WASHER 11/32X2; 316L CN | D55: 11/32X2 | E55: 316L | F55: Выпуклая_шайба | H55: 11 | I55: 32 | J55: 2 | K55: 11/32x2; | L55: 316L | P55: Выпуклая_шайба 11/32x2; 316L | Q55: 10015748 | R55: 484 | S55: 0.011
A56: 10011635 | B56: ZSEM | C56: DOMED WASHER 11/32X2; 321 | D56: 11/32X2 | E56: 321 | F56: Выпуклая_шайба | H56: 11 | I56: 32 | J56: 2 | K56: 11/32x2; | L56: 321 | P56: Выпуклая_шайба 11/32x2; 321 | Q56: 10011635 | R56: 484 | S56: 0.011
A57: 10008892 | B57: ZSEM | C57: DOMED WASHER 11/32X2; 410S | D57: 11/32X2 | E57: 410S | F57: Выпуклая_шайба | H57: 11 | I57: 32 | J57: 2 | K57: 11/32x2; | L57: 410S | P57: Выпуклая_шайба 11/32x2; 410S | Q57: 10008892 | R57: 484 | S57: 0.011
A58: 10015752 | B58: ZSEM | C58: DOMED WASHER 11/32X2; 410S CN | D58: 11/32X2 | E58: 410S | F58: Выпуклая_шайба | H58: 11 | I58: 32 | J58: 2 | K58: 11/32x2; | L58: 410S | P58: Выпуклая_шайба 11/32x2; 410S | Q58: 10015752 | R58: 484 | S58: 0.011
A59: 10008893 | B59: ZSEM | C59: DOMED WASHER 11/32X2; 904L | D59: 11/32X2 | E59: 904L | F59: Выпуклая_шайба | H59: 11 | I59: 32 | J59: 2 | K59: 11/32x2; | L59: 904L | P59: Выпуклая_шайба 11/32x2; 904L | Q59: 10008893 | R59: 484 | S59: 0.011
A60: 10015754 | B60: ZSEM | C60: DOMED WASHER 11/32X2; 904L CN | D60: 11/32X2 | E60: 904L | F60: Выпуклая_шайба | H60: 11 | I60: 32 | J60: 2 | K60: 11/32x2; | L60: 904L | P60: Выпуклая_шайба 11/32x2; 904L | Q60: 10015754 | R60: 484 | S60: 0.011
A61: 10002701 | B61: ZSEM | C61: DOMED WASHER 11/45X2; 1.4000 | D61: 11/45X2 | E61: 1.4000/410S | F61: Выпуклая_шайба | H61: 11 | I61: 45 | J61: 2 | K61: 11/45x2; | L61: 410S | M61: 410S | N61: 1.4 | P61: Выпуклая_шайба 11/45x2; 410S | Q61: 10002701 | S61: 0.024
A62: 10003335 | B62: ZSEM | C62: DOMED WASHER 11/45X2; 1.4307 | D62: 11/45X2 | E62: 1.4307/304L | F62: Выпуклая_шайба | H62: 11 | I62: 45 | J62: 2 | K62: 11/45x2; | L62: 304L | M62: 304L | N62: 1.4307 | P62: Выпуклая_шайба 11/45x2; 304L | Q62: 10003335 | S62: 0.024
A63: 10002634 | B63: ZSEM | C63: DOMED WASHER 11/45X2; 1.4404 | D63: 11/45X2 | E63: 1.4404/316L | F63: Выпуклая_шайба | H63: 11 | I63: 45 | J63: 2 | K63: 11/45x2; | L63: 316L | M63: 316L | N63: 1.4404 | P63: Выпуклая_шайба 11/45x2; 316L | Q63: 10002634 | S63: 0.024
A64: 10002983 | B64: ZSEM | C64: DOMED WASHER 11/45X2; 1.4539 | D64: 11/45X2 | E64: 1.4539/904L | F64: Выпуклая_шайба | H64: 11 | I64: 45 | J64: 2 | K64: 11/45x2; | L64: 904L | M64: 904L | N64: 1.4539 | P64: Выпуклая_шайба 11/45x2; 904L | Q64: 10002983 | S64: 0.024
A65: 10003418 | B65: ZSEM | C65: DOMED WASHER 11/45X2; 1.4571 | D65: 11/45X2 | E65: 1.4571/316Ti | F65: Выпуклая_шайба | H65: 11 | I65: 45 | J65: 2 | K65: 11/45x2; | L65: 316Ti | M65: 316Ti | N65: 1.4571 | P65: Выпуклая_шайба 11/45x2; 316Ti | Q65: 10003418 | S65: 0.024
A66: 10004128 | B66: ZSEM | C66: DOMED WASHER 14/32X2; 1.4541 | D66: 14/32X2 | E66: 1.4541/321 | F66: Выпуклая_шайба | H66: 14 | I66: 32 | J66: 2 | K66: 14/32x2; | L66: 321 | M66: 321 | N66: 1.4541 | P66: Выпуклая_шайба 14/32x2; 321 | Q66: 10004128 | R66: 484 | S66: 0.01
A67: 10002639 | B67: ZSEM | C67: DOMED WASHER 14/45X2; 1.4000 | D67: 14/45X2 | E67: 1.4000/410S | F67: Выпуклая_шайба | H67: 14 | I67: 45 | J67: 2 | K67: 14/45x2; | L67: 410S | M67: 410S | N67: 1.4 | P67: Выпуклая_шайба 14/45x2; 410S | Q67: 10002639 | R67: 481 | S67: 0.023
A68: 10003007 | B68: ZSEM | C68: DOMED WASHER 14/45X2; 1.4307 | D68: 14/45X2 | E68: 1.4307/304L | F68: Выпуклая_шайба | H68: 14 | I68: 45 | J68: 2 | K68: 14/45x2; | L68: 304L | M68: 304L | N68: 1.4307 | P68: Выпуклая_шайба 14/45x2; 304L | Q68: 10003007 | R68: 481 | S68: 0.023
A69: 10003407 | B69: ZSEM | C69: DOMED WASHER 14/45X2; 1.4404 | D69: 14/45X2 | E69: 1.4404/316L | F69: Выпуклая_шайба | H69: 14 | I69: 45 | J69: 2 | K69: 14/45x2; | L69: 316L | M69: 316L | N69: 1.4404 | P69: Выпуклая_шайба 14/45x2; 316L | Q69: 10003407 | R69: 481 | S69: 0.023
A70: 10003394 | B70: ZSEM | C70: DOMED WASHER 14/45X2; 1.4571 | D70: 14/45X2 | E70: 1.4571/316Ti | F70: Выпуклая_шайба | H70: 14 | I70: 45 | J70: 2 | K70: 14/45x2; | L70: 316Ti | M70: 316Ti | N70: 1.4571 | P70: Выпуклая_шайба 14/45x2; 316Ti | Q70: 10003394 | R70: 481 | S70: 0.023
A71: 10002947 | B71: ZSEM | C71: FLANGE DN100X6; 1.4000 | D71: DN100 | E71: 1.4000/410S | F71: Фланец | H71: DN100 | I71: 6 | K71: DN100; | L71: 410S | M71: 410S | N71: 1.4 | P71: Фланец DN100; 410S | Q71: 10002947 | S71: 1.12
A72: 10002903 | B72: ZSEM | C72: FLANGE DN100X6; 1.4307 | D72: DN100 | E72: 1.4307/304L | F72: Фланец | H72: DN100 | I72: 6 | K72: DN100; | L72: 304L | M72: 304L | N72: 1.4307 | P72: Фланец DN100; 304L | Q72: 10002903 | S72: 1.12
A73: 10002923 | B73: ZSEM | C73: FLANGE DN100X6; 1.4404 | D73: DN100 | E73: 1.4404/316L | F73: Фланец | H73: DN100 | I73: 6 | K73: DN100; | L73: 316L | M73: 316L | N73: 1.4404 | P73: Фланец DN100; 316L | Q73: 10002923 | S73: 1.12
A74: 10002941 | B74: ZSEM | C74: FLANGE DN100X6; 1.4539 | D74: DN100 | E74: 1.4539/904L | F74: Фланец | H74: DN100 | I74: 6 | K74: DN100; | L74: 904L | M74: 904L | N74: 1.4539 | P74: Фланец DN100; 904L | Q74: 10002941 | S74: 1.12
A75: 10002927 | B75: ZSEM | C75: FLANGE DN10X6; 1.4000 | D75: DN10 | E75: 1.4000/410S | F75: Фланец | H75: DN10 | I75: 6 | K75: DN10; | L75: 410S | M75: 410S | N75: 1.4 | P75: Фланец DN10; 410S | Q75: 10002927 | S75: 0.18
A76: 10002871 | B76: ZSEM | C76: FLANGE DN10X6; 1.4307 | D76: DN10 | E76: 1.4307/304L | F76: Фланец | H76: DN10 | I76: 6 | K76: DN10; | L76: 304L | M76: 304L | N76: 1.4307 | P76: Фланец DN10; 304L | Q76: 10002871 | S76: 0.18
A77: 10002869 | B77: ZSEM | C77: FLANGE DN10X6; 1.4404 | D77: DN10 | E77: 1.4404/316L | F77: Фланец | H77: DN10 | I77: 6 | K77: DN10; | L77: 316L | M77: 316L | N77: 1.4404 | P77: Фланец DN10; 316L | Q77: 10002869 | S77: 0.18
A78: 10002906 | B78: ZSEM | C78: FLANGE DN10X6; 1.4539 | D78: DN10 | E78: 1.4539/904L | F78: Фланец | H78: DN10 | I78: 6 | K78: DN10; | L78: 904L | M78: 904L | N78: 1.4539 | P78: Фланец DN10; 904L | Q78: 10002906 | S78: 0.18
A79: 10002961 | B79: ZSEM | C79: FLANGE DN125X10; 1.4000 | D79: DN125 | E79: 1.4000/410S | F79: Фланец | H79: DN125 | I79: 10 | K79: DN125; | L79: 410S | M79: 410S | N79: 1.4 | P79: Фланец DN125; 410S | Q79: 10002961 | S79: 2.21
A80: 10002902 | B80: ZSEM | C80: FLANGE DN125X10; 1.4307 | D80: DN125 | E80: 1.4307/304L | F80: Фланец | H80: DN125 | I80: 10 | K80: DN125; | L80: 304L | M80: 304L | N80: 1.4307 | P80: Фланец DN125; 304L | Q80: 10002902 | S80: 2.21
A81: 10002924 | B81: ZSEM | C81: FLANGE DN125X10; 1.4404 | D81: DN125 | E81: 1.4404/316L | F81: Фланец | H81: DN125 | I81: 10 | K81: DN125; | L81: 316L | M81: 316L | N81: 1.4404 | P81: Фланец DN125; 316L | Q81: 10002924 | S81: 2.21
A82: 10002940 | B82: ZSEM | C82: FLANGE DN125X10; 1.4539 | D82: DN125 | E82: 1.4539/904L | F82: Фланец | H82: DN125 | I82: 10 | K82: DN125; | L82: 904L | M82: 904L | N82: 1.4539 | P82: Фланец DN125; 904L | Q82: 10002940 | S82: 2.21
A83: 10002962 | B83: ZSEM | C83: FLANGE DN150X10; 1.4000 | D83: DN150 | E83: 1.4000/410S | F83: Фланец | H83: DN150 | I83: 10 | K83: DN150; | L83: 410S | M83: 410S | N83: 1.4 | P83: Фланец DN150; 410S | Q83: 10002962 | S83: 2.45
A84: 10002901 | B84: ZSEM | C84: FLANGE DN150X10; 1.4307 | D84: DN150 | E84: 1.4307/304L | F84: Фланец | H84: DN150 | I84: 10 | K84: DN150; | L84: 304L | M84: 304L | N84: 1.4307 | P84: Фланец DN150; 304L | Q84: 10002901 | S84: 2.45
A85: 10002872 | B85: ZSEM | C85: FLANGE DN150X10; 1.4404 | D85: DN150 | E85: 1.4404/316L | F85: Фланец | H85: DN150 | I85: 10 | K85: DN150; | L85: 316L | M85: 316L | N85: 1.4404 | P85: Фланец DN150; 316L | Q85: 10002872 | S85: 2.45
A86: 10002939 | B86: ZSEM | C86: FLANGE DN150X10; 1.4539 | D86: DN150 | E86: 1.4539/904L | F86: Фланец | H86: DN150 | I86: 10 | K86: DN150; | L86: 904L | M86: 904L | N86: 1.4539 | P86: Фланец DN150; 904L | Q86: 10002939 | S86: 2.45
A87: 10003119 | B87: ZSEM | C87: FLANGE DN150X10; 1.4541 | D87: DN150 | E87: 1.4541/321 | F87: Фланец | H87: DN150 | I87: 10 | K87: DN150; | L87: 321 | M87: 321 | N87: 1.4541 | P87: Фланец DN150; 321 | Q87: 10003119 | S87: 2.45
A88: 10002928 | B88: ZSEM | C88: FLANGE DN15X6; 1.4000 | D88: DN15 | E88: 1.4000/410S | F88: Фланец | H88: DN15 | I88: 6 | K88: DN15; | L88: 410S | M88: 410S | N88: 1.4 | P88: Фланец DN15; 410S | Q88: 10002928 | S88: 0.2
A89: 10002870 | B89: ZSEM | C89: FLANGE DN15X6; 1.4307 | D89: DN15 | E89: 1.4307/304L | F89: Фланец | H89: DN15 | I89: 6 | K89: DN15; | L89: 304L | M89: 304L | N89: 1.4307 | P89: Фланец DN15; 304L | Q89: 10002870 | S89: 0.2
A90: 10002920 | B90: ZSEM | C90: FLANGE DN15X6; 1.4404 | D90: DN15 | E90: 1.4404/316L | F90: Фланец | H90: DN15 | I90: 6 | K90: DN15; | L90: 316L | M90: 316L | N90: 1.4404 | P90: Фланец DN15; 316L | Q90: 10002920 | S90: 0.2
A91: 10002907 | B91: ZSEM | C91: FLANGE DN15X6; 1.4539 | D91: DN15 | E91: 1.4539/904L | F91: Фланец | H91: DN15 | I91: 6 | K91: DN15; | L91: 904L | M91: 904L | N91: 1.4539 | P91: Фланец DN15; 904L | Q91: 10002907 | S91: 0.2
A92: 10002965 | B92: ZSEM | C92: FLANGE DN200X10; 1.4000 | D92: DN200 | E92: 1.4000/410S | F92: Фланец | H92: DN200 | I92: 10 | K92: DN200; | L92: 410S | M92: 410S | N92: 1.4 | P92: Фланец DN200; 410S | Q92: 10002965 | S92: 3.21
A93: 10002900 | B93: ZSEM | C93: FLANGE DN200X10; 1.4307 | D93: DN200 | E93: 1.4307/304L | F93: Фланец | H93: DN200 | I93: 10 | K93: DN200; | L93: 304L | M93: 304L | N93: 1.4307 | P93: Фланец DN200; 304L | Q93: 10002900 | S93: 3.21
A94: 10002926 | B94: ZSEM | C94: FLANGE DN200X10; 1.4404 | D94: DN200 | E94: 1.4404/316L | F94: Фланец | H94: DN200 | I94: 10 | K94: DN200; | L94: 316L | M94: 316L | N94: 1.4404 | P94: Фланец DN200; 316L | Q94: 10002926 | S94: 3.21
A95: 10002943 | B95: ZSEM | C95: FLANGE DN200X10; 1.4539 | D95: DN200 | E95: 1.4539/904L | F95: Фланец | H95: DN200 | I95: 10 | K95: DN200; | L95: 904L | M95: 904L | N95: 1.4539 | P95: Фланец DN200; 904L | Q95: 10002943 | S95: 3.21
A96: 10002931 | B96: ZSEM | C96: FLANGE DN20X6; 1.4000 | D96: DN20 | E96: 1.4000/410S | F96: Фланец | H96: DN20 | I96: 6 | K96: DN20; | L96: 410S | M96: 410S | N96: 1.4 | P96: Фланец DN20; 410S | Q96: 10002931 | S96: 0.26
A97: 10002881 | B97: ZSEM | C97: FLANGE DN20X6; 1.4307 | D97: DN20 | E97: 1.4307/304L | F97: Фланец | H97: DN20 | I97: 6 | K97: DN20; | L97: 304L | M97: 304L | N97: 1.4307 | P97: Фланец DN20; 304L | Q97: 10002881 | S97: 0.26
A98: 10002916 | B98: ZSEM | C98: FLANGE DN20X6; 1.4404 | D98: DN20 | E98: 1.4404/316L | F98: Фланец | H98: DN20 | I98: 6 | K98: DN20; | L98: 316L | M98: 316L | N98: 1.4404 | P98: Фланец DN20; 316L | Q98: 10002916 | S98: 0.26
A99: 10002908 | B99: ZSEM | C99: FLANGE DN20X6; 1.4539 | D99: DN20 | E99: 1.4539/904L | F99: Фланец | H99: DN20 | I99: 6 | K99: DN20; | L99: 904L | M99: 904L | N99: 1.4539 | P99: Фланец DN20; 904L | Q99: 10002908 | S99: 0.26
A100: 10002963 | B100: ZSEM | C100: FLANGE DN250X12; 1.4000 | D100: DN250 | E100: 1.4000/410S | F100: Фланец | H100: DN250 | I100: 12 | K100: DN250; | L100: 410S | M100: 410S | N100: 1.4 | P100: Фланец DN250; 410S | Q100: 10002963 | S100: 4.63
A101: 10002899 | B101: ZSEM | C101: FLANGE DN250X12; 1.4307 | D101: DN250 | E101: 1.4307/304L | F101: Фланец | H101: DN250 | I101: 12 | K101: DN250; | L101: 304L | M101: 304L | N101: 1.4307 | P101: Фланец DN250; 304L | Q101: 10002899 | S101: 4.63
A102: 10002904 | B102: ZSEM | C102: FLANGE DN250X12; 1.4404 | D102: DN250 | E102: 1.4404/316L | F102: Фланец | H102: DN250 | I102: 12 | K102: DN250; | L102: 316L | M102: 316L | N102: 1.4404 | P102: Фланец DN250; 316L | Q102: 10002904 | S102: 4.63
A103: 10002942 | B103: ZSEM | C103: FLANGE DN250X12; 1.4539 | D103: DN250 | E103: 1.4539/904L | F103: Фланец | H103: DN250 | I103: 12 | K103: DN250; | L103: 904L | M103: 904L | N103: 1.4539 | P103: Фланец DN250; 904L | Q103: 10002942 | S103: 4.63
A104: 10002929 | B104: ZSEM | C104: FLANGE DN25X6; 1.4000 | D104: DN25 | E104: 1.4000/410S | F104: Фланец | H104: DN25 | I104: 6 | K104: DN25; | L104: 410S | M104: 410S | N104: 1.4 | P104: Фланец DN25; 410S | Q104: 10002929 | S104: 0.31
A105: 10002875 | B105: ZSEM | C105: FLANGE DN25X6; 1.4307 | D105: DN25 | E105: 1.4307/304L | F105: Фланец | H105: DN25 | I105: 6 | K105: DN25; | L105: 304L | M105: 304L | N105: 1.4307 | P105: Фланец DN25; 304L | Q105: 10002875 | S105: 0.31
A106: 10002921 | B106: ZSEM | C106: FLANGE DN25X6; 1.4404 | D106: DN25 | E106: 1.4404/316L | F106: Фланец | H106: DN25 | I106: 6 | K106: DN25; | L106: 316L | M106: 316L | N106: 1.4404 | P106: Фланец DN25; 316L | Q106: 10002921 | S106: 0.31
A107: 10002909 | B107: ZSEM | C107: FLANGE DN25X6; 1.4539 | D107: DN25 | E107: 1.4539/904L | F107: Фланец | H107: DN25 | I107: 6 | K107: DN25; | L107: 904L | M107: 904L | N107: 1.4539 | P107: Фланец DN25; 904L | Q107: 10002909 | S107: 0.31
A108: 10002964 | B108: ZSEM | C108: FLANGE DN300X12; 1.4000 | D108: DN300 | E108: 1.4000/410S | F108: Фланец | H108: DN300 | I108: 12 | K108: DN300; | L108: 410S | M108: 410S | N108: 1.4 | P108: Фланец DN300; 410S | Q108: 10002964 | S108: 6.18
A109: 10002898 | B109: ZSEM | C109: FLANGE DN300X12; 1.4307 | D109: DN300 | E109: 1.4307/304L | F109: Фланец | H109: DN300 | I109: 12 | K109: DN300; | L109: 304L | M109: 304L | N109: 1.4307 | P109: Фланец DN300; 304L | Q109: 10002898 | S109: 6.18
A110: 10002915 | B110: ZSEM | C110: FLANGE DN300X12; 1.4404 | D110: DN300 | E110: 1.4404/316L | F110: Фланец | H110: DN300 | I110: 12 | K110: DN300; | L110: 316L | M110: 316L | N110: 1.4404 | P110: Фланец DN300; 316L | Q110: 10002915 | S110: 6.18
A111: 10002946 | B111: ZSEM | C111: FLANGE DN300X12; 1.4539 | D111: DN300 | E111: 1.4539/904L | F111: Фланец | H111: DN300 | I111: 12 | K111: DN300; | L111: 904L | M111: 904L | N111: 1.4539 | P111: Фланец DN300; 904L | Q111: 10002946 | S111: 6.18
A112: 10002932 | B112: ZSEM | C112: FLANGE DN32X6; 1.4000 | D112: DN32 | E112: 1.4000/410S | F112: Фланец | H112: DN32 | I112: 6 | K112: DN32; | L112: 410S | M112: 410S | N112: 1.4 | P112: Фланец DN32; 410S | Q112: 10002932 | S112: 0.44
A113: 10002876 | B113: ZSEM | C113: FLANGE DN32X6; 1.4307 | D113: DN32 | E113: 1.4307/304L | F113: Фланец | H113: DN32 | I113: 6 | K113: DN32; | L113: 304L | M113: 304L | N113: 1.4307 | P113: Фланец DN32; 304L | Q113: 10002876 | S113: 0.44
A114: 10002918 | B114: ZSEM | C114: FLANGE DN32X6; 1.4404 | D114: DN32 | E114: 1.4404/316L | F114: Фланец | H114: DN32 | I114: 6 | K114: DN32; | L114: 316L | M114: 316L | N114: 1.4404 | P114: Фланец DN32; 316L | Q114: 10002918 | S114: 0.44
A115: 10002911 | B115: ZSEM | C115: FLANGE DN32X6; 1.4539 | D115: DN32 | E115: 1.4539/904L | F115: Фланец | H115: DN32 | I115: 6 | K115: DN32; | L115: 904L | M115: 904L | N115: 1.4539 | P115: Фланец DN32; 904L | Q115: 10002911 | S115: 0.44
A116: 10002966 | B116: ZSEM | C116: FLANGE DN350X12; 1.4000 | D116: DN350 | E116: 1.4000/410S | F116: Фланец | H116: DN350 | I116: 12 | K116: DN350; | L116: 410S | M116: 410S | N116: 1.4 | P116: Фланец DN350; 410S | Q116: 10002966 | S116: 8.06
A117: 10002897 | B117: ZSEM | C117: FLANGE DN350X12; 1.4307 | D117: DN350 | E117: 1.4307/304L | F117: Фланец | H117: DN350 | I117: 12 | K117: DN350; | L117: 304L | M117: 304L | N117: 1.4307 | P117: Фланец DN350; 304L | Q117: 10002897 | S117: 8.06
A118: 10002910 | B118: ZSEM | C118: FLANGE DN350X12; 1.4404 | D118: DN350 | E118: 1.4404/316L | F118: Фланец | H118: DN350 | I118: 12 | K118: DN350; | L118: 316L | M118: 316L | N118: 1.4404 | P118: Фланец DN350; 316L | Q118: 10002910 | S118: 8.06
A119: 10002944 | B119: ZSEM | C119: FLANGE DN350X12; 1.4539 | D119: DN350 | E119: 1.4539/904L | F119: Фланец | H119: DN350 | I119: 12 | K119: DN350; | L119: 904L | M119: 904L | N119: 1.4539 | P119: Фланец DN350; 904L | Q119: 10002944 | S119: 8.06
A120: 10002970 | B120: ZSEM | C120: FLANGE DN400X12; 1.4000 | D120: DN400 | E120: 1.4000/410S | F120: Фланец | H120: DN400 | I120: 12 | K120: DN400; | L120: 410S | M120: 410S | N120: 1.4 | P120: Фланец DN400; 410S | Q120: 10002970 | S120: 8.88
A121: 10002896 | B121: ZSEM | C121: FLANGE DN400X12; 1.4307 | D121: DN400 | E121: 1.4307/304L | F121: Фланец | H121: DN400 | I121: 12 | K121: DN400; | L121: 304L | M121: 304L | N121: 1.4307 | P121: Фланец DN400; 304L | Q121: 10002896 | S121: 8.88
A122: 10002912 | B122: ZSEM | C122: FLANGE DN400X12; 1.4404 | D122: DN400 | E122: 1.4404/316L | F122: Фланец | H122: DN400 | I122: 12 | K122: DN400; | L122: 316L | M122: 316L | N122: 1.4404 | P122: Фланец DN400; 316L | Q122: 10002912 | S122: 8.88
A123: 10002930 | B123: ZSEM | C123: FLANGE DN400X12; 1.4539 | D123: DN400 | E123: 1.4539/904L | F123: Фланец | H123: DN400 | I123: 12 | K123: DN400; | L123: 904L | M123: 904L | N123: 1.4539 | P123: Фланец DN400; 904L | Q123: 10002930 | S123: 8.88
A124: 10002935 | B124: ZSEM | C124: FLANGE DN40X6; 1.4000 | D124: DN40 | E124: 1.4000/410S | F124: Фланец | H124: DN40 | I124: 6 | K124: DN40; | L124: 410S | M124: 410S | N124: 1.4 | P124: Фланец DN40; 410S | Q124: 10002935 | S124: 0.52
A125: 10002877 | B125: ZSEM | C125: FLANGE DN40X6; 1.4307 | D125: DN40 | E125: 1.4307/304L | F125: Фланец | H125: DN40 | I125: 6 | K125: DN40; | L125: 304L | M125: 304L | N125: 1.4307 | P125: Фланец DN40; 304L | Q125: 10002877 | S125: 0.52
A126: 10002917 | B126: ZSEM | C126: FLANGE DN40X6; 1.4404 | D126: DN40 | E126: 1.4404/316L | F126: Фланец | H126: DN40 | I126: 6 | K126: DN40; | L126: 316L | M126: 316L | N126: 1.4404 | P126: Фланец DN40; 316L | Q126: 10002917 | S126: 0.52
A127: 10002914 | B127: ZSEM | C127: FLANGE DN40X6; 1.4539 | D127: DN40 | E127: 1.4539/904L | F127: Фланец | H127: DN40 | I127: 6 | K127: DN40; | L127: 904L | M127: 904L | N127: 1.4539 | P127: Фланец DN40; 904L | Q127: 10002914 | S127: 0.52
A128: 10003710 | B128: ZSEM | C128: FLANGE DN450X12; 1.4000 | D128: DN450 | E128: 1.4000/410S | F128: Фланец | H128: DN450 | I128: 12 | K128: DN450; | L128: 410S | M128: 410S | N128: 1.4 | P128: Фланец DN450; 410S | Q128: 10003710 | S128: 10.2
A129: 10003683 | B129: ZSEM | C129: FLANGE DN450X12; 1.4307 | D129: DN450 | E129: 1.4307/304L | F129: Фланец | H129: DN450 | I129: 12 | K129: DN450; | L129: 304L | M129: 304L | N129: 1.4307 | P129: Фланец DN450; 304L | Q129: 10003683 | S129: 10.2
A130: 10003682 | B130: ZSEM | C130: FLANGE DN450X12; 1.4404 | D130: DN450 | E130: 1.4404/316L | F130: Фланец | H130: DN450 | I130: 12 | K130: DN450; | L130: 316L | M130: 316L | N130: 1.4404 | P130: Фланец DN450; 316L | Q130: 10003682 | S130: 10.2
A131: 10003707 | B131: ZSEM | C131: FLANGE DN450X12; 1.4539 | D131: DN450 | E131: 1.4539/904L | F131: Фланец | H131: DN450 | I131: 12 | K131: DN450; | L131: 904L | M131: 904L | N131: 1.4539 | P131: Фланец DN450; 904L | Q131: 10003707 | S131: 10.2
A132: 10002971 | B132: ZSEM | C132: FLANGE DN500X12; 1.4000 | D132: DN500 | E132: 1.4000/410S | F132: Фланец | H132: DN500 | I132: 12 | K132: DN500; | L132: 410S | M132: 410S | N132: 1.4 | P132: Фланец DN500; 410S | Q132: 10002971 | S132: 11.14
A133: 10002895 | B133: ZSEM | C133: FLANGE DN500X12; 1.4307 | D133: DN500 | E133: 1.4307/304L | F133: Фланец | H133: DN500 | I133: 12 | K133: DN500; | L133: 304L | M133: 304L | N133: 1.4307 | P133: Фланец DN500; 304L | Q133: 10002895 | S133: 11.14
A134: 10002905 | B134: ZSEM | C134: FLANGE DN500X12; 1.4404 | D134: DN500 | E134: 1.4404/316L | F134: Фланец | H134: DN500 | I134: 12 | K134: DN500; | L134: 316L | M134: 316L | N134: 1.4404 | P134: Фланец DN500; 316L | Q134: 10002905 | S134: 11.14
A135: 10002945 | B135: ZSEM | C135: FLANGE DN500X12; 1.4539 | D135: DN500 | E135: 1.4539/904L | F135: Фланец | H135: DN500 | I135: 12 | K135: DN500; | L135: 904L | M135: 904L | N135: 1.4539 | P135: Фланец DN500; 904L | Q135: 10002945 | S135: 11.14
A136: 10002933 | B136: ZSEM | C136: FLANGE DN50X6; 1.4000 | D136: DN50 | E136: 1.4000/410S | F136: Фланец | H136: DN50 | I136: 6 | K136: DN50; | L136: 410S | M136: 410S | N136: 1.4 | P136: Фланец DN50; 410S | Q136: 10002933 | S136: 0.57
A137: 10002878 | B137: ZSEM | C137: FLANGE DN50X6; 1.4307 | D137: DN50 | E137: 1.4307/304L | F137: Фланец | H137: DN50 | I137: 6 | K137: DN50; | L137: 304L | M137: 304L | N137: 1.4307 | P137: Фланец DN50; 304L | Q137: 10002878 | S137: 0.57
A138: 10002922 | B138: ZSEM | C138: FLANGE DN50X6; 1.4404 | D138: DN50 | E138: 1.4404/316L | F138: Фланец | H138: DN50 | I138: 6 | K138: DN50; | L138: 316L | M138: 316L | N138: 1.4404 | P138: Фланец DN50; 316L | Q138: 10002922 | S138: 0.57
A139: 10002913 | B139: ZSEM | C139: FLANGE DN50X6; 1.4539 | D139: DN50 | E139: 1.4539/904L | F139: Фланец | H139: DN50 | I139: 6 | K139: DN50; | L139: 904L | M139: 904L | N139: 1.4539 | P139: Фланец DN50; 904L | Q139: 10002913 | S139: 0.57
A140: 10002997 | B140: ZSEM | C140: FLANGE DN600X12; 1.4000 | D140: DN600 | E140: 1.4000/410S | F140: Фланец | H140: DN600 | I140: 12 | K140: DN600; | L140: 410S | M140: 410S | N140: 1.4 | P140: Фланец DN600; 410S | Q140: 10002997 | S140: 14.02
A141: 10003715 | B141: ZSEM | C141: FLANGE DN600X12; 1.4307 | D141: DN600 | E141: 1.4307/304L | F141: Фланец | H141: DN600 | I141: 12 | K141: DN600; | L141: 304L | M141: 304L | N141: 1.4307 | P141: Фланец DN600; 304L | Q141: 10003715 | S141: 14.02
A142: 10003708 | B142: ZSEM | C142: FLANGE DN600X12; 1.4404 | D142: DN600 | E142: 1.4404/316L | F142: Фланец | H142: DN600 | I142: 12 | K142: DN600; | L142: 316L | M142: 316L | N142: 1.4404 | P142: Фланец DN600; 316L | Q142: 10003708 | S142: 14.02
A143: 10003709 | B143: ZSEM | C143: FLANGE DN600X12; 1.4539 | D143: DN600 | E143: 1.4539/904L | F143: Фланец | H143: DN600 | I143: 12 | K143: DN600; | L143: 904L | M143: 904L | N143: 1.4539 | P143: Фланец DN600; 904L | Q143: 10003709 | S143: 14.02
A144: 10002934 | B144: ZSEM | C144: FLANGE DN65X6; 1.4000 | D144: DN65 | E144: 1.4000/410S | F144: Фланец | H144: DN65 | I144: 6 | K144: DN65; | L144: 410S | M144: 410S | N144: 1.4 | P144: Фланец DN65; 410S | Q144: 10002934 | S144: 0.71
A145: 10002880 | B145: ZSEM | C145: FLANGE DN65X6; 1.4307 | D145: DN65 | E145: 1.4307/304L | F145: Фланец | H145: DN65 | I145: 6 | K145: DN65; | L145: 304L | M145: 304L | N145: 1.4307 | P145: Фланец DN65; 304L | Q145: 10002880 | S145: 0.71
A146: 10002919 | B146: ZSEM | C146: FLANGE DN65X6; 1.4404 | D146: DN65 | E146: 1.4404/316L | F146: Фланец | H146: DN65 | I146: 6 | K146: DN65; | L146: 316L | M146: 316L | N146: 1.4404 | P146: Фланец DN65; 316L | Q146: 10002919 | S146: 0.71
A147: 10002938 | B147: ZSEM | C147: FLANGE DN65X6; 1.4539 | D147: DN65 | E147: 1.4539/904L | F147: Фланец | H147: DN65 | I147: 6 | K147: DN65; | L147: 904L | M147: 904L | N147: 1.4539 | P147: Фланец DN65; 904L | Q147: 10002938 | S147: 0.71
A148: 10002936 | B148: ZSEM | C148: FLANGE DN80X6; 1.4000 | D148: DN80 | E148: 1.4000/410S | F148: Фланец | H148: DN80 | I148: 6 | K148: DN80; | L148: 410S | M148: 410S | N148: 1.4 | P148: Фланец DN80; 410S | Q148: 10002936 | S148: 1.01
A149: 10002879 | B149: ZSEM | C149: FLANGE DN80X6; 1.4307 | D149: DN80 | E149: 1.4307/304L | F149: Фланец | H149: DN80 | I149: 6 | K149: DN80; | L149: 304L | M149: 304L | N149: 1.4307 | P149: Фланец DN80; 304L | Q149: 10002879 | S149: 1.01
A150: 10002925 | B150: ZSEM | C150: FLANGE DN80X6; 1.4404 | D150: DN80 | E150: 1.4404/316L | F150: Фланец | H150: DN80 | I150: 6 | K150: DN80; | L150: 316L | M150: 316L | N150: 1.4404 | P150: Фланец DN80; 316L | Q150: 10002925 | S150: 1.01
A151: 10002937 | B151: ZSEM | C151: FLANGE DN80X6; 1.4539 | D151: DN80 | E151: 1.4539/904L | F151: Фланец | H151: DN80 | I151: 6 | K151: DN80; | L151: 904L | M151: 904L | N151: 1.4539 | P151: Фланец DN80; 904L | Q151: 10002937 | S151: 1.01
A152: 10036236 | B152: ZRAW | C152: GASKET DN100X1,5; GRAFLEX 34 RU | D152: 210X115X1,5 | E152: GRAFLEX | F152: Прокладка | H152: DN100 | I152: 1.5 | K152: DN100x1.5; | L152: Graflex | P152: Прокладка DN100x1.5; Graflex | Q152: 10036236 | R152: 715 | S152: 0.034
A153: 10036235 | B153: ZRAW | C153: GASKET DN100X3; 210X115X3; GRAFLEX RU | D153: 210X115X3 | E153: GRAFLEX | F153: Прокладка | H153: DN100 | I153: 3 | K153: DN100x3; | L153: Graflex | P153: Прокладка DN100x3; Graflex | Q153: 10036235 | R153: 716 | S153: 0.068
A154: 10036237 | B154: ZRAW | C154: GASKET DN125X1,5; GRAFLEX 34 RU | D154: 240X142X1,5 | E154: GRAFLEX | F154: Прокладка | H154: DN125 | I154: 1.5 | K154: DN125x1.5; | L154: Graflex | P154: Прокладка DN125x1.5; Graflex | Q154: 10036237 | R154: 717 | S154: 0.068
A155: 10036238 | B155: ZRAW | C155: GASKET DN150X1,5; GRAFLEX 34 RU | D155: 265X169X1,5 | E155: GRAFLEX | F155: Прокладка | H155: DN150 | I155: 1.5 | K155: DN150x1.5; | L155: Graflex | P155: Прокладка DN150x1.5; Graflex | Q155: 10036238 | R155: 719 | S155: 0.075
A156: 10036239 | B156: ZRAW | C156: GASKET DN150X3; GRAFLEX 34 RU | D156: 265X169X3 | E156: GRAFLEX | F156: Прокладка | H156: DN150 | I156: 3 | K156: DN150x3; | L156: Graflex | P156: Прокладка DN150x3; Graflex | Q156: 10036239 | R156: 720 | S156: 0.15
A157: 10036241 | B157: ZRAW | C157: GASKET DN200X1,5; GRAFLEX 34 RU | D157: 320X219,6X1,5 | E157: GRAFLEX | F157: Прокладка | H157: DN200 | I157: 1.5 | K157: DN200x1.5; | L157: Graflex | P157: Прокладка DN200x1.5; Graflex | Q157: 10036241 | R157: 721 | S157: 0.099
A158: 10036242 | B158: ZRAW | C158: GASKET DN200X3; GRAFLEX 34 RU | D158: 320X219,6X3 | E158: GRAFLEX | F158: Прокладка | H158: DN200 | I158: 3 | K158: DN200x3; | L158: Graflex | P158: Прокладка DN200x3; Graflex | Q158: 10036242 | R158: 722 | S158: 0.198
A159: 10036240 | B159: ZRAW | C159: GASKET DN20X1,5; GRAFLEX 34 RU | D159: 90X27,2X1,5 | E159: GRAFLEX | F159: Прокладка | H159: DN20 | I159: 1.5 | K159: DN20x1.5; | L159: Graflex | P159: Прокладка DN20x1.5; Graflex | Q159: 10036240 | R159: 701 | S159: 0.008
A160: 10036245 | B160: ZRAW | C160: GASKET DN250X1,5; GRAFLEX 34 RU | D160: 375X273,5X1,5 | E160: GRAFLEX | F160: Прокладка | H160: DN250 | I160: 1.5 | K160: DN250x1.5; | L160: Graflex | P160: Прокладка DN250x1.5; Graflex | Q160: 10036245 | R160: 723 | S160: 0.142
A161: 10036246 | B161: ZRAW | C161: GASKET DN250X3; GRAFLEX 34 RU | D161: 375X273X3 | E161: GRAFLEX | F161: Прокладка | H161: DN250 | I161: 3 | K161: DN250x3; | L161: Graflex | P161: Прокладка DN250x3; Graflex | Q161: 10036246 | R161: 724 | S161: 0.248
A162: 10036243 | B162: ZRAW | C162: GASKET DN25X1,5; GRAFLEX 34 RU | D162: 100X34X1,5 | E162: GRAFLEX | F162: Прокладка | H162: DN25 | I162: 1.5 | K162: DN25x1.5; | L162: Graflex | P162: Прокладка DN25x1.5; Graflex | Q162: 10036243 | R162: 703 | S162: 0.01
A163: 10036244 | B163: ZRAW | C163: GASKET DN25X3; GRAFLEX 34 RU | D163: 100X34X3 | E163: GRAFLEX | F163: Прокладка | H163: DN25 | I163: 3 | K163: DN25x3; | L163: Graflex | P163: Прокладка DN25x3; Graflex | Q163: 10036244 | R163: 704 | S163: 0.02
A164: 10036247 | B164: ZRAW | C164: GASKET DN300X1,5; GRAFLEX 34 RU | D164: 440X324,7X1,5 | E164: GRAFLEX | F164: Прокладка | H164: DN300 | I164: 1.5 | K164: DN300x1.5; | L164: Graflex | P164: Прокладка DN300x1.5; Graflex | Q164: 10036247 | R164: 725 | S164: 0.19
A165: 10036248 | B165: ZRAW | C165: GASKET DN300X3; GRAFLEX 34 RU | D165: 440X324,7X3 | E165: GRAFLEX | F165: Прокладка | H165: DN300 | I165: 3 | K165: DN300x3; | L165: Graflex | P165: Прокладка DN300x3; Graflex | Q165: 10036248 | R165: 726 | S165: 0.38
A166: 10036249 | B166: ZRAW | C166: GASKET DN32X1,5; GRAFLEX 34 RU | D166: 120X42,7X1,5 | E166: GRAFLEX | F166: Прокладка | H166: DN32 | I166: 1.5 | K166: DN32x1.5; | L166: Graflex | P166: Прокладка DN32x1.5; Graflex | Q166: 10036249 | R166: 705 | S166: 0.014
A167: 10036250 | B167: ZRAW | C167: GASKET DN350X1,5; GRAFLEX 34 RU | D167: 490X363X1,5 | E167: GRAFLEX | F167: Прокладка | H167: DN350 | I167: 1.5 | K167: DN350x1.5; | L167: Graflex | P167: Прокладка DN350x1.5; Graflex | Q167: 10036250 | R167: 727 | S167: 0.248
A168: 10036251 | B168: ZRAW | C168: GASKET DN350X3; GRAFLEX 34 RU | D168: 490X357X3 | E168: GRAFLEX | F168: Прокладка | H168: DN350 | I168: 3 | K168: DN350x3; | L168: Graflex | P168: Прокладка DN350x3; Graflex | Q168: 10036251 | R168: 728 | S168: 0.496
A169: 10036254 | B169: ZRAW | C169: GASKET DN400X1,5; GRAFLEX 34 RU | D169: 538X410X1,5 | E169: GRAFLEX | F169: Прокладка | H169: DN400 | I169: 1.5 | K169: DN400x1.5; | L169: Graflex | P169: Прокладка DN400x1.5; Graflex | Q169: 10036254 | R169: 729 | S169: 0.273
A170: 10036253 | B170: ZRAW | C170: GASKET DN40X1,5; GRAFLEX 34 RU | D170: 130X48,6X1,5 | E170: GRAFLEX | F170: Прокладка | H170: DN40 | I170: 1.5 | K170: DN40x1.5; | L170: Graflex | P170: Прокладка DN40x1.5; Graflex | Q170: 10036253 | R170: 707 | S170: 0.016
A171: 10039598 | B171: ZRAW | C171: GASKET DN40X1.5 TYPE 1; GRAFLEX | D171: DN40 | E171: Graflex | F171: Прокладка | H171: DN40 | I171: 1.5 | K171: DN40x1.5; | L171: Graflex | P171: Прокладка DN40x1.5; Graflex | Q171: 10039598 | R171: 707 | S171: 0.016
A172: 10036252 | B172: ZRAW | C172: GASKET DN40X3; GRAFLEX 34 RU | D172: 130X48,6X3 | E172: GRAFLEX | F172: Прокладка | H172: DN40 | I172: 3 | K172: DN40x3; | L172: Graflex | P172: Прокладка DN40x3; Graflex | Q172: 10036252 | R172: 708 | S172: 0.032
A173: 10036255 | B173: ZRAW | C173: GASKET DN450X1,5; GRAFLEX 34 RU | D173: 595X458,5X1,5 | E173: GRAFLEX | F173: Прокладка | H173: DN450 | I173: 1.5 | K173: DN450x1.5; | L173: Graflex | P173: Прокладка DN450x1.5; Graflex | Q173: 10036255 | R173: 731 | S173: 0.314
A174: 10036258 | B174: ZRAW | C174: GASKET DN500X1,5; GRAFLEX 34 RU | D174: 645X509X1,5 | E174: GRAFLEX | F174: Прокладка | H174: DN500 | I174: 1.5 | K174: DN500x1.5; | L174: Graflex | P174: Прокладка DN500x1.5; Graflex | Q174: 10036258 | R174: 733 | S174: 0.343
A175: 10036257 | B175: ZRAW | C175: GASKET DN50X1,5; GRAFLEX 34 RU | D175: 140X60,5X1,5 | E175: GRAFLEX | F175: Прокладка | H175: DN50 | I175: 1.5 | K175: DN50x1.5; | L175: Graflex | P175: Прокладка DN50x1.5; Graflex | Q175: 10036257 | R175: 709 | S175: 0.018
A176: 10036256 | B176: ZRAW | C176: GASKET DN50X3; GRAFLEX 34 RU | D176: 140X60,5X3 | E176: GRAFLEX | F176: Прокладка | H176: DN50 | I176: 3 | K176: DN50x3; | L176: Graflex | P176: Прокладка DN50x3; Graflex | Q176: 10036256 | R176: 710 | S176: 0.036
A177: 10036259 | B177: ZRAW | C177: GASKET DN600X1,5; GRAFLEX 34 RU | D177: 753X612X1,5 | E177: GRAFLEX | F177: Прокладка | H177: DN600 | I177: 1.5 | K177: DN600x1.5; | L177: Graflex | P177: Прокладка DN600x1.5; Graflex | Q177: 10036259 | R177: 735 | S177: 0.431
A178: 10036261 | B178: ZRAW | C178: GASKET DN65X1,5; GRAFLEX 34 RU | D178: 160X76,6X1,5 | E178: GRAFLEX | F178: Прокладка | H178: DN65 | I178: 1.5 | K178: DN65x1.5; | L178: Graflex | P178: Прокладка DN65x1.5; Graflex | Q178: 10036261 | R178: 711 | S178: 0.022
A179: 10036260 | B179: ZRAW | C179: GASKET DN65X3; GRAFLEX 34 RU | D179: 160X76,6X3 | E179: GRAFLEX | F179: Прокладка | H179: DN65 | I179: 3 | K179: DN65x3; | L179: Graflex | P179: Прокладка DN65x3; Graflex | Q179: 10036260 | R179: 712 | S179: 0.044
A180: 10036263 | B180: ZRAW | C180: GASKET DN80X1,5; GRAFLEX 34 RU | D180: 190X89,4X1,5 | E180: GRAFLEX | F180: Прокладка | H180: DN80 | I180: 1.5 | K180: DN80x1.5; | L180: Graflex | P180: Прокладка DN80x1.5; Graflex | Q180: 10036263 | R180: 713 | S180: 0.031
A181: 10036262 | B181: ZRAW | C181: GASKET DN80X3; GRAFLEX 34 RU | D181: 190X89,4X3 | E181: GRAFLEX | F181: Прокладка | H181: DN80 | I181: 3 | K181: DN80x3; | L181: Graflex | P181: Прокладка DN80x3; Graflex | Q181: 10036262 | R181: 714 | S181: 0.062
A182: 10006327 | B182: ZRAW | C182: GASKET WASHER 10/45X3; GLASS | D182: 10/45X3 | E182: Glas/Glass | F182: Прокладка_шайба | H182: 10 | I182: 45 | J182: 3 | K182: 10/45x3; | L182: Glass | P182: Прокладка_шайба 10/45x3; Glass | Q182: 10006327 | S182: 0.003
A183: 10036233 | B183: ZRAW | C183: GASKET WASHER 11/32X3; PTFE RU | D183: 11/32X3 | E183: PTFE | F183: Прокладка_шайба | H183: 12 | I183: 32 | J183: 3 | K183: 12/32x3; | L183: PTFE | P183: Прокладка_шайба 12/32x3; PTFE | Q183: 10036233 | S183: 0.005
A184: 10036234 | B184: ZRAW | C184: GASKET WASHER 12/32X3; GRAFLEX RU | D184: 12/32X3 | E184: GRAFLEX | F184: Прокладка_шайба | H184: 12 | I184: 32 | J184: 3 | K184: 12/32x3; | L184: Graflex | P184: Прокладка_шайба 12/32x3; Graflex | Q184: 10036234 | S184: 0.005
A185: 10038760 | B185: ZRAW | C185: GASKET WASHER 12/32X3; PTFE | D185: 12/32X3 | E185: PTFE | F185: Прокладка_шайба | H185: 12 | I185: 32 | J185: 3 | K185: 12/32x3; | L185: PTFE | P185: Прокладка_шайба 12/32x3; PTFE | Q185: 10038760 | S185: 0.005
A186: 10039212 | B186: ZSEM | C186: GASKET WASHER 12/45X3; GRAFLEX | D186: 12/45X3 | E186: Graflex | F186: Прокладка_шайба | H186: 12 | I186: 45 | J186: 3 | K186: 12/45x3; | L186: Graflex | P186: Прокладка_шайба 12/45x3; Graflex | Q186: 10039212 | S186: 0.006
A187: 10044370 | B187: ZSEM | C187: Lug 80x60x6; 1.4307 | D187: 80x60x6 | E187: 304L | F187: Ушко | H187: 80 | I187: 60 | J187: 6 | K187: 80x60x6; | L187: 304L | M187: 304L | N187: 1.4307 | P187: Ушко 80x60x6; 304L | Q187: 10044370 | S187: 0.24
A188: 10044369 | B188: ZSEM | C188: Lug 80x60x6; 1.4404 | D188: 80x60x6 | E188: 316L | F188: Ушко | H188: 80 | I188: 60 | J188: 6 | K188: 80x60x6; | L188: 316L | M188: 316L | N188: 1.4404 | P188: Ушко 80x60x6; 316L | Q188: 10044369 | S188: 0.24
A189: 10040439 | B189: ZSEM | C189: MKS - 3 CASSETTE ASSEMBLY; 316L | E189: 316L | F189: Сборка_МКС | G189: 3 | K189: 3 шт; | L189: 316L | M189: 316L | N189: 1.4404 | P189: Сборка_МКС 3 шт; 316L | Q189: 10040439 | R189: 831 | S189: 24.68
A190: 10007948 | B190: ZSEM | C190: MKS - 4 CASSETTE ASSEMBLY; 316L | E190: 316L | F190: Сборка_МКС | G190: 4 | K190: 4 шт; | L190: 316L | M190: 316L | N190: 1.4404 | P190: Сборка_МКС 4 шт; 316L | Q190: 10007948 | R190: 832 | S190: 30.76
A191: 10008044 | B191: ZSEM | C191: MKS - 5 CASSETTE ASSEMBLY; 316L | E191: 316L | F191: Сборка_МКС | G191: 5 | K191: 5 шт; | L191: 316L | M191: 316L | N191: 1.4404 | P191: Сборка_МКС 5 шт; 316L | Q191: 10008044 | R191: 833 | S191: 36.83
A192: 10007950 | B192: ZSEM | C192: MKS - 6 CASSETTE ASSEMBLY; 316L | E192: 316L | F192: Сборка_МКС | G192: 6 | K192: 6 шт; | L192: 316L | M192: 316L | N192: 1.4404 | P192: Сборка_МКС 6 шт; 316L | Q192: 10007950 | R192: 834 | S192: 42.91
A193: 10007949 | B193: ZSEM | C193: MKS - Vortex gas distributor; 316L | E193: 1.4404/316L | F193: Завихритель | K193: MKC; | L193: 316L | P193: Завихритель MKC; 316L | Q193: 10007949 | R193: 830 | S193: 5.485
A194: 10041765 | B194: ZSEM | C194: Pipe clamp DN100 RU; 1.4404 | D194: ID 114.3 | E194: 316L | F194: Хомут | H194: DN100 | K194: DN100; | L194: 316L | M194: 316L | N194: 1.4404 | P194: Хомут DN100; 316L | Q194: 10041765 | R194: 670 | S194: 0.64
A195: 10041766 | B195: ZSEM | C195: Pipe clamp DN125 RU; 1.4404 | D195: ID 139.7 | E195: 316L | F195: Хомут | H195: DN125 | K195: DN125; | L195: 316L | M195: 316L | N195: 1.4404 | P195: Хомут DN125; 316L | Q195: 10041766 | R195: 671 | S195: 0.73
A196: 10041767 | B196: ZSEM | C196: Pipe clamp DN150 RU; 1.4404 | D196: ID 168.3 | E196: 316L | F196: Хомут | H196: DN150 | K196: DN150; | L196: 316L | M196: 316L | N196: 1.4404 | P196: Хомут DN150; 316L | Q196: 10041767 | R196: 672 | S196: 0.84
A197: 10041759 | B197: ZSEM | C197: Pipe clamp DN25 RU; 1.4404 | D197: ID 33.7 | E197: 316L | F197: Хомут | H197: DN25 | K197: DN25; | L197: 316L | M197: 316L | N197: 1.4404 | P197: Хомут DN25; 316L | Q197: 10041759 | R197: 664 | S197: 0.1
A198: 10041760 | B198: ZSEM | C198: Pipe clamp DN32 RU; 1.4404 | D198: ID 42.4 | E198: 316L | F198: Хомут | H198: DN32 | K198: DN32; | L198: 316L | M198: 316L | N198: 1.4404 | P198: Хомут DN32; 316L | Q198: 10041760 | R198: 665 | S198: 0.12
A199: 10041761 | B199: ZSEM | C199: Pipe clamp DN40 RU; 1.4404 | D199: ID 48.3 | E199: 316L | F199: Хомут | H199: DN40 | K199: DN40; | L199: 316L | M199: 316L | N199: 1.4404 | P199: Хомут DN40; 316L | Q199: 10041761 | R199: 666 | S199: 0.13
A200: 10041762 | B200: ZSEM | C200: Pipe clamp DN50 RU; 1.4404 | D200: ID 60.3 | E200: 316L | F200: Хомут | H200: DN50 | K200: DN50; | L200: 316L | M200: 316L | N200: 1.4404 | P200: Хомут DN50; 316L | Q200: 10041762 | R200: 667 | S200: 0.22
... 172 more rows

Sheet Технологический (НЕ ТРОГАТЬ!)
B2: Устройства | E2: Тип устройства | F2: Тарельчатые | G2: Насадочные | H2: Сепарации | I2: Общие
B3: Расположение внутренних устройств | F3: Гидрозатвор | G3: Балка | H3: Зажим трубы | I3: Антизавихритель
B4: Приварные детали | F4: Зажим | G4: Балка с отверстиями | H4: Закрывающая пластина | I4: Газораспределительное устройство
B5: Насадка | F5: Ложный карман | G5: Боковая стенка | H5: Сборка МКС | I5: Завихритель
B6: Распределитель | F6: Люк | G6: Боковая стенка газохода | H6: Комплект лопаток | I6: Заглушка
B7: Удерживающая решетка | F7: Опора кармана | G7: Втулка распорная | H7: Короб | I7: Кронштейн
B8: Опорная решетка | F8: Отбойная панель | G8: Зажим | H8: Лопатка | I8: Опора кармана
B9: Коллектор | F9: Панель | G9: Крышка | H9: Люк | I9: Панель
B10: Тарелки | F10: Панель переливного кармана | G10: Крышка газохода | H10: Монтажная пластина | I10: Пластина
B11: 1-Поточные тарелки | F11: Панель тарелки | G11: Ламель
B12: 2-Поточные четные тарелки | F12: Перегородка | G12: Главный канал | H12: Панель | I12: Прокладка
B13: 2-Поточные нечетные тарелки | F13: Переливная планка | G13: Ложная обечайка | H13: Панель тарелки | I13: Сегмент кольца
B14: 4-Поточные четные тарелки | F14: Пластина | G14: Опора | H14: Профиль | I14: Труба
B15: 4-Поточные нечетные тарелки | F15: Приемная панель | G15: Опорная решетка | H15: Сегмент меллашеврона | I15: Труба с фланцем
B16: Картриджные тарелки | G16: Опорный профиль | H16: Сепаратор | I16: Уголок
B17: Устройство ввода | G17: Отбойная пластина | I17: Ушко
B18: Выпрямитель потока | G18: Предраспределитель | I18: Фланец
G19: Приварные глухой тарелки
B20: Сепаратор | G20: Приварные ложной обечайки
B21: Каплеотбойник | G21: Профиль
B22: Каплеотбойник пластинчатый | G22: Рапределитель
B23: Тарелка МКС | G23: Рукавные каналы с отбойниками
B24: Перфорированная перегородка | G24: Рукавный канал
B25: Коллектор-распределитель | G25: Сегмент
B26: Балка | G26: Сегмент предраспределителя
B27: Глухая тарелка | G27: Сегмент распределителя
B28: Разжимное кольцо | G28: Соединительный элемент
G29: Средний канал
G30: Уголок
G31: Уголок для транспортировки
G32: Удерживающая решетка
G33: Успокоительная пластина
G34: Успокоительный короб
G35: Фильтр
B41: ZRAW
B42: Тип_материала | C42: Лист | D42: Труба | E42: Гайка_приварная | F42: Шпилька | G42: Болт | H42: Гайка | I42: Шпилька_приварная | J42: Сетка | K42: Круг | L42: Прокладка_набивка | M42: Проволока_вязальная | O42: Крепеж | P42: Болт | Q42: Гайка | R42: Шайба_DIN125 | S42: Шпилька | T42: Шпилька_уплощенная | U42: Лента | V42: Шайба_DIN9021
B43: Марка_материала | C43: Толщина | D43: O.D. | E43: M10 | F43: M10 | G43: M10 | H43: M10 | I43: M10 | J43: фильтр NR.30 | K43: 12 | L43: 15х15 | M43: 0.28 | P43: M10 | Q43: M10 | R43: 8.4/16x1.6 | S43: M10 | T43: M10x50-1S | U43: 7x2.5 | V43: 17/50x3
B44: 410S | C44: 0.5 | D44: 16 | E44: M12 | F44: M12 | G44: M12 | H44: M12 | I44: M12 | J44: решетка W20x2.0 | K44: 16 | L44: 16х16 | M44: 0.15 | P44: M12 | Q44: M12 | R44: 10.5/20x2 | S44: M12 | T44: M10x50-2S | U44: 30x3
B45: 304 | C45: 0.8 | D45: 18 | E45: M16 | F45: M16 | G45: M16 | H45: M16 | K45: 20 | L45: 18х18 | P45: M16 | Q45: M16 | R45: 10.5/30x2.5 | S45: M16 | T45: M10x70-1S | U45: 55x3
B46: 304L | C46: 1 | D46: 26.9 | E46: M20 | F46: M20 | G46: M20 | H46: M20 | K46: 6 | P46: M20 | Q46: M20 | R46: 13/24x2.5 | S46: M20
B47: 316L | C47: 1.5 | D47: 33.7 | R47: 17/30x3
B48: 316Ti | C48: 2 | D48: 42.4 | R48: 21/37x3
B49: 321 | C49: 3 | D49: 48.3
B50: 904L | C50: 4 | D50: 60
B51: A2 | C51: 5 | D51: 60.3
B52: A4 | C52: 6 | D52: 76.1
B53: 8.8 | C53: 8 | D53: 88.9
B54: Graflex | C54: 10 | D54: 89
B55: PTFE | C55: 12 | D55: 114
B56: Glass | C56: 14 | D56: 114.3
B57: 09Г2С | C57: 15 | D57: 139.7 | I57: Максимально английская раскладка!!! Российские названия- на русском
B58: 12Х18Н10Т | C58: 16 | D58: 159
B59: 08Х18Н10Т | C59: 20 | D59: 168
D60: 168.3
D61: 219
D62: 219.1
D63: 273
D64: 323.9
D65: 355.6
D66: 406.4
D67: 456
D68: 508
D69: 606
C72: Размер_листа
C73: 1000x2000
C74: 1500x3000
C75: 1500x4000
C76: Длина шпильки
C77: 20
C78: 1000
C79: Толщ стенки трубы
C80: 1
C81: 1.6
C82: 2
C83: 2.6
C84: 3
C85: 3.2
C86: 4
C87: 1.5
C88: 10
B94: Прокладка | C94: Фланец
B95: DN
B96: DN 20
B97: DN 25
B98: DN 32
B99: DN 40
B100: DN 50
B101: DN 65
B102: DN 80
B103: DN 100
B104: DN 125
B105: DN 150
B106: DN 200
B107: DN 250
B108: DN 300
B109: DN 350
B110: DN 400
B111: DN 450
B112: DN 500
B113: DN 600
B117: ZSEM
B118: Тарелки | C118: Выпуклая_пластина | D118: Выпуклая_шайба | E118: Двусторонний_зажим | F118: Односторонний_зажим | G118: Клапан_BDH | H118: Клапан_RV1 | I118: Клапан_UFM | J118: Клапан_UFM_AF | K118: Пластина | L118: Клапан_UFM_PV | M118: Клапан_F1
C119: 47x27x2 | D119: 11/32x2 | E119: 5-19 | F119: 5-19 | G119: LL12.7 s1.5 | H119: LL11.1 s2 | I119: LL9.5 s1.5 | J119: LL12.7 s2 | K119: 55x50x3 | L119: LL11.5 s2 | M119: LL11.1 s1.5
D120: 11/45x2 | E120: 6-15 | F120: 6-15 | G120: LL12.7 s2 | H120: LL11.1 s1.5 | I120: LL9.5 s2
D121: 14/32x2 | F121: 15-25
D122: 14/45x2
B131: Вн.Устройства | C131: Крепежная_пластина | D131: Направляющая_потока | E131: Опорная_пластина | F131: Опорная_пластина_C | G131: Сетка_VEPW | H131: Скоба_балки | I131: Трубка_витая | J131: Уголок | K131: Шпилька_с_2_гайками
C132: 33x33x1.5 | D132: A=29 | E132: 54x42x13 | F132: В=30 | G132: 0.16x40 | H132: 44x32x2 | I132: левая L150/60 | J132: 30x40x3 | K132: M16x330
D133: A=39 | F133: В=40 | I133: левая L200/60 | K133: M16x500
D134: A=59 | F134: В=50 | I134: левая L250/60
D135: A=79 | F135: В=60 | I135: левая L270/60
F136: В=80 | I136: левая L350/60
F137: В=100 | I137: правая L150/60
F138: В=110 | I138: правая L200/60
I139: правая L250/60
I140: правая L270/60
I141: правая L350/60
B143: Сепарация | C143: Завихритель | D143: Сборка_МКС | E143: Короб_завихрительный
C144: MKC | D144: 3 шт | E144: HPST 3
D145: 4 шт | E145: HPST 4
D146: 5 шт | E146: HPST 5L
D147: 6 шт | E147: HPST 5R
E148: HPST 6
E149: VERSISWIRL 3
E150: VERSISWIRL 4
E151: VERSISWIRL 5L
E152: VERSISWIRL 5R
E153: VERSISWIRL 6
B158: Универсальные | C158: Прокладка | D158: Прокладка_шайба | E158: Ушко | F158: Фланец | G158: Шайба | H158: Хомут
C159: DN20 | D159: 10/45x3 | E159: 80x60x6 | F159: DN20 | G159: 11/22 | H159: DN25
C160: DN25 | D160: 12/32x3 | F160: DN25 | G160: 11/32 | H160: DN32
C161: DN32 | D161: 12/45x3 | F161: DN32 | G161: 11/40 | H161: DN40
C162: DN40 | F162: DN40 | G162: 14/32 | H162: DN50
C163: DN50 | F163: DN50 | G163: 14/40 | H163: DN65
C164: DN65 | F164: DN65 | G164: 21/32 | H164: DN80
C165: DN80 | F165: DN80 | G165: 17/32 | H165: DN100
C166: DN100 | F166: DN100 | G166: 17/40 | H166: DN125
C167: DN125 | F167: DN125 | G167: 17/50 | H167: DN150
C168: DN150 | F168: DN150
C169: DN200 | F169: DN200
C170: DN250 | F170: DN250
C171: DN300 | F171: DN300
C172: DN350 | F172: DN350
C173: DN400 | F173: DN400
C174: DN450 | F174: DN450
C175: DN500 | F175: DN500
C176: DN600 | F176: DN600

Sheet Шаблон
B1: Проект | C1: № Проекта | D1: № Колонны | E1: Наименование колонны | F1: № Устройства/чертежа | G1: Наименование устройства | H1: ZLIN-Material number | U1: Вес для ОВ | V1: Вес для DD | W1: Удельный вес
B2: =Список!C2 -> 0 | C2: =Список!C3 -> 0 | G2: Расположение внутренних устройств | K2: Поз. | L2: Обозначение | M2: Наименование | N2: Кол. | O2: Запас | P2: Ед. изм. | Q2: Вес, кг | R2: Материал | S2: Примечания
B3: Запас по крепежу | C3: Запас по прокладкам | E3: min по крепежу | F3: min по прокладкам | M3: Документация
B4: 0.05 | C4: 0.25 | D4: min | E4: 2 | F4: 1 | M4: =G2&" "&G3 -> Расположение внутренних устройств | Q4: =IF(M4="Расположение внутренних устройств",SUM(U:U),SUM(V:V)) -> 
C6: Для общего вида | M6: Сборочные единицы
C7: Устройство | D7: Марка материала | E7: Номер устройства | F7: Вес устр-ва | G7: Количество
B8: Насадка | C8: Насадка | D8: 316L | E8: 001 | F8: 10 | G8: 1 | H8: =$C$2&"-"&$D$2&"-"&E8 -> 0--001 | K8: 1 | L8: =IF(C8="Насадка","БЧ",H8) -> БЧ | M8: =C8 -> Насадка | N8: =G8 -> 1 | P8: =IF(C8="Насадка","м3","шт.") -> м3 | Q8: =F8 -> 10 | R8: =D8 -> 316L | U8: =N8*Q8 -> 10
C9: Удерживающая решетка | D9: 316L | E9: 002 | F9: 1 | G9: 1 | H9: =$C$2&"-"&$D$2&"-"&E9 -> 0--002 | K9: 2 | L9: =IF(C9="Насадка","БЧ",H9) -> 0--002 | M9: =C9 -> Удерживающая решетка | N9: =G9 -> 1 | P9: =IF(C9="Насадка","м3","шт.") -> шт. | Q9: =F9 -> 1 | R9: =D9 -> 316L | U9: =N9*Q9 -> 1
C10: Опорная решетка | D10: 316L | E10: 003 | F10: 152 | G10: 1 | H10: 0--003 | K10: 3 | L10: 0--003 | M10: Опорная решетка | N10: 1 | P10: =IF(C10="Насадка","м3","шт.") -> шт. | Q10: 152 | R10: =D10 -> 316L | U10: =N10*Q10 -> 152
C11: Коллектор | D11: 316L | E11: 004 | F11: 1 | G11: 1 | H11: 0--004 | K11: 4 | L11: 0--004 | M11: Коллектор | N11: 1 | P11: =IF(C11="Насадка","м3","шт.") -> шт. | Q11: 1 | R11: =D11 -> 316L | U11: =N11*Q11 -> 1
C12: Каплеуловитель | D12: 316L | E12: 005 | F12: 1 | G12: 1 | H12: 0--005 | K12: 5 | L12: 0--005 | M12: Каплеуловитель | N12: 1 | P12: =IF(C12="Насадка","м3","шт.") -> шт. | Q12: 1 | R12: =D12 -> 316L | U12: =N12*Q12 -> 1
C13: Детали | M13: Детали
C14: Тип устройства | D14: Наим. детали | E14: Доп. текст | G14: Количество
C15: Тарельчатые | D15: Опора кармана | G15: 10 | K15: 1 | M15: =D15&" "&E15 -> Опора кармана | N15: =G15 -> 10 | P15: шт.
C16: Сепарации | D16: Кассета МКС | G16: 5 | K16: 2 | M16: =D16&" "&E16 -> Кассета МКС | N16: =G16 -> 5 | P16: шт.
A17: ZSEM | B17: Сепарация | C17: Кассета_МКС | D17: 316L | E17: 4 шт | G17: 5 | H17: =IF(OR(C17="Шайба",C17="Гайка",C17="Прокладка"),(C17&" "&E17&"x"&F17&"; "&D17),(C17&" "&E17&"; "&D17)) -> Кассета_МКС 4 шт; 316L | K17: 3 | L17: =VLOOKUP(H17,ZSEM!$P:$Q,2,0) ->  | M17: =IF(OR(C17="Шайба",C17="Гайка"),(C17&" "&E17&"x"&F17),(C17&" "&E17)) -> Кассета_МКС 4 шт | N17: 5 | P17: =IF(C17="Лист","кг",IF(OR(C17="Труба",C17="Лента"),"м",IF(C17="Сетка","м2","шт."))) -> шт. | R17: =D17 -> 316L
C19: Основной материал
C20: Тип материала | D20: Марка материала | E20: Осн.Размер | F20: Доп. Размер | G20: Количество | M20: Материалы
A21: ZRAW | C21: Проволока_вязальная | D21: 316L | E21: 0.28 | G21: 150 | H21: =IF(OR(C21="Гайка_приварная",C21="Гайка",C21="Сетка",C21="Лента",C21="Круг"),(C21&" "&E21&"; "&D21),(C21&" "&E21&""&F21&"; "&D21)) -> Проволока_вязальная 0.28; 316L | K21: 200 | L21: =VLOOKUP(H21,ZRAW!$P$2:$R$2048,2,0) -> 11000023 | M21: =IF(OR(C21="Гайка_приварная",C21="Гайка",C21="Сетка",C21="Лента",C21="Круг"),(C21&" "&E21),(C21&" "&E21&"x"&F21)) -> Проволока_вязальная 0.28x | N21: =G21 -> 150 | P21: =IF(C21="Лист","кг",IF(OR(C21="Труба",C21="Лента",C21="Проволока_вязальная"),"м",IF(C21="Сетка","м2","шт."))) -> м | R21: =D21 -> 316L | V21: =IF(P21="кг",N21,(N21*W21)) -> 0 | W21: =VLOOKUP(L21,ZRAW!$Q$2:$S$2078,3,0) -> 0
A22: ZRAW | C22: Лист | D22: 410S | E22: 3 | F22: 1500x3000 | G22: 5 | H22: =IF(OR(C22="Гайка_приварная",C22="Гайка",C22="Сетка",C22="Лента",C22="Круг"),(C22&" "&E22&"; "&D22),(C22&" "&E22&"x"&F22&"; "&D22)) -> Лист 3x1500x3000; 410S | K22: =K21+1 -> 201 | L22: =VLOOKUP(H22,ZRAW!$P$2:$R$2048,2,0) -> 10016601 | M22: =IF(OR(C22="Гайка_приварная",C22="Гайка",C22="Сетка",C22="Лента",C22="Круг"),(C22&" "&E22),(C22&" "&E22&"x"&F22)) -> Лист 3x1500x3000 | N22: 5 | P22: =IF(C22="Лист","кг",IF(OR(C22="Труба",C22="Лента"),"м",IF(C22="Сетка","м2","шт."))) -> кг | R22: 410S | V22: 5 | W22: =VLOOKUP(L22,ZRAW!$Q$2:$S$2078,3,0) -> 0
A23: ZRAW | C23: Труба | D23: 304L | E23: 60.3 | F23: 2.6 | G23: 1 | H23: =IF(OR(C23="Гайка_приварная",C23="Гайка",C23="Сетка",C23="Лента",C23="Круг"),(C23&" "&E23&"; "&D23),(C23&" "&E23&"x"&F23&"; "&D23)) -> Труба 60,3x2,6; 304L | K23: =K22+1 -> 202 | L23: =VLOOKUP(H23,ZRAW!$P$2:$R$2048,2,0) ->  | M23: Труба 60,3x2,6 | N23: 1 | P23: м | R23: 304L | W23: =VLOOKUP(L23,ZRAW!$Q$2:$S$2078,3,0) -> 
A24: ZRAW | C24: Гайка_приварная | D24: A2 | E24: M10 | G24: 5 | H24: Гайка_приварная M10; A2 | K24: =K23+1 -> 203 | L24: =VLOOKUP(H24,ZRAW!$P$2:$R$2048,2,0) -> 10005617 | M24: Гайка_приварная M10 | N24: 5 | P24: шт. | R24: A2 | V24: 0.06 | W24: =VLOOKUP(L24,ZRAW!$Q$2:$S$2078,3,0) -> 0.012
A25: ZRAW | C25: Сетка | D25: 316L | E25: фильтр NR.30 | G25: 1 | H25: Сетка фильтр NR.30; 316L | K25: =K24+1 -> 204 | L25: =VLOOKUP(H25,ZRAW!$P$2:$R$2048,2,0) -> 10028766 | M25: Сетка фильтр NR.30 | N25: 1 | P25: м2 | R25: 316L | V25: 1 | W25: =VLOOKUP(L25,ZRAW!$Q$2:$S$2078,3,0) -> 1
A26: ZRAW | C26: Шайба_DIN9021 | D26: A2 | E26: 89 | F26: 2 | G26: 1 | H26: Шайба_DIN9021 89x2; A2 | K26: =K25+1 -> 205 | L26: =VLOOKUP(H26,ZRAW!$P$2:$R$2048,2,0) ->  | M26: Шайба_DIN9021 89x2 | N26: 1 | P26: шт. | R26: A2 | W26: =VLOOKUP(L26,ZRAW!$Q$2:$S$2078,3,0) -> 
B27: Детали супермаркета
B28: Тип устройства | C28: Наим. детали | D28: Марка материала | E28: Осн.Размер | F28: Доп. Размер | G28: Количество | M28: Унифицированные детали
A29: ZSEM | B29: Тарелки | C29: Тарелки | D29: 316L | E29: LL11.5 s2 | G29: 1 | H29: =IF(OR(C29="Шайба",C29="Гайка"),(C29&" "&E29&"x"&F29&"; "&D29),(C29&" "&E29&"; "&D29)) -> Тарелки LL11.5 s2; 316L | K29: =K26+1 -> 206 | L29: =VLOOKUP(H29,ZSEM!$P:$Q,2,0) ->  | M29: =IF(OR(C29="Шайба",C29="Гайка"),(C29&" "&E29&"x"&F29),IF(IFERROR(FIND("Клапан",C29),0)=0,C29&" "&E29&" "&F29,C29)) -> Тарелки LL11.5 s2 | N29: =G29 -> 1 | P29: =IF(C29="Лист","кг",IF(C29="Сетка_VEPW","м",IF(C29="Сетка","м2","шт."))) -> шт. | R29: =D29 -> 316L | V29: =N29*W29 ->  | W29: =VLOOKUP(L29,ZSEM!$Q$2:$S$2237,3,0) -> 
A30: ZSEM | B30: Тарелки | C30: Клапан_BDH | D30: 316L | E30: LL11.1 s2 | G30: 1 | H30: Клапан_BDH LL11.1 s2; 316L | K30: =K29+1 -> 207 | L30: =VLOOKUP(H30,ZSEM!$P:$Q,2,0) ->  | M30: =IF(OR(C30="Шайба",C30="Гайка"),(C30&" "&E30&"x"&F30),IF(IFERROR(FIND("Клапан",C30),0)=0,C30&" "&E30&" "&F30,C30)) -> Клапан_BDH | N30: 1 | P30: шт. | R30: 316L | W30: =VLOOKUP(L30,ZSEM!$Q$2:$S$2237,3,0) -> 
A31: ZSEM | B31: Вн.Устройства | C31: Опорная_пластина_C | D31: 316L | E31: В=30 | G31: 1 | H31: Опорная_пластина_C В=30; 316L | K31: =K30+1 -> 208 | L31: =VLOOKUP(H31,ZSEM!$P:$Q,2,0) -> 10039433 | M31: =IF(OR(C31="Шайба",C31="Гайка"),(C31&" "&E31&"x"&F31),IF(IFERROR(FIND("Клапан",C31),0)=0,C31&" "&E31&" "&F31,C31)) -> Опорная_пластина_C В=30 | N31: 1 | P31: шт. | R31: 316L | V31: 0.071 | W31: =VLOOKUP(L31,ZSEM!$Q$2:$S$2237,3,0) -> 0.071
A32: ZSEM | B32: Вн.Устройства | C32: Опорная_пластина | D32: 304L | E32: 54x42x13 | G32: 1 | H32: Опорная_пластина 54x42x13; 304L | K32: =K31+1 -> 209 | L32: =VLOOKUP(H32,ZSEM!$P:$Q,2,0) -> 10002502 | M32: Опорная_пластина 54x42x13 | N32: 1 | P32: шт. | R32: 304L | V32: 0.05 | W32: =VLOOKUP(L32,ZSEM!$Q$2:$S$2237,3,0) -> 0.05
A33: ZSEM | B33: Сепарация | C33: Завихритель | D33: 316L | E33: MKC | G33: 1 | H33: Завихритель MKC; 316L | K33: =K32+1 -> 210 | L33: =VLOOKUP(H33,ZSEM!$P:$Q,2,0) -> 10007949 | M33: Завихритель MKC | N33: 1 | P33: шт. | R33: 316L | V33: 5.485 | W33: =VLOOKUP(L33,ZSEM!$Q$2:$S$2237,3,0) -> 5.485
A34: ZSEM | B34: Сепарация | C34: Короб_завихрительный | D34: 316L | E34: HPST 5R | G34: 1 | H34: Короб_завихрительный HPST 5R; 316L | K34: 211 | L34: =VLOOKUP(H34,ZSEM!$P:$Q,2,0) -> 10003094 | M34: Короб_завихрительный HPST 5R | N34: 1 | P34: шт. | R34: 316L | V34: 34 | W34: =VLOOKUP(L34,ZSEM!$Q$2:$S$2237,3,0) -> 34
A35: ZSEM | B35: Универсальные | C35: Прокладка_шайба | D35: 304L | E35: 10/45x3 | F35: 3 | G35: 1 | H35: Прокладка_шайба 10/45x3; 304L | K35: 212 | L35: =VLOOKUP(H35,ZSEM!$P:$Q,2,0) ->  | M35: Прокладка_шайба 10/45x3 3 | N35: 1 | P35: шт. | R35: 304L | W35: =VLOOKUP(L35,ZSEM!$Q$2:$S$2237,3,0) -> 
A36: ZSEM | B36: Универсальные | C36: Фланец | D36: 316L | E36: DN50 | G36: 1 | H36: Фланец DN50; 316L | K36: 213 | L36: =VLOOKUP(H36,ZSEM!$P:$Q,2,0) -> 10002922 | M36: Фланец DN50 | N36: 1 | P36: шт. | R36: 316L | V36: 0.57 | W36: =VLOOKUP(L36,ZSEM!$Q$2:$S$2237,3,0) -> 0.57
C37: Крепёж
B38: Тип устройства | C38: Тип крепежа | D38: Марка материала | E38: Осн.Размер | F38: Доп. Размер | G38: Количество | I38: Запас | J38: min | M38: Стандартные детали
A39: ZSEM | B39: Тарелки | C39: Пластина | D39: 316L | E39: 55x50x3 | G39: 1 | H39: =IF(OR(C39="Шайба",C39="Гайка",C39="Прокладка"),(C39&" "&E39&"x"&F39&"; "&D39),(C39&" "&E39&"; "&D39)) -> Пластина 55x50x3; 316L | I39: =IF(OR(C39="Клапан_BDH",C39="Клапан_UFM",C39="Клапан_UFM_AF",C39="Клапан_RV1"),0,(IF(C39="Прокладка",ROUNDUP(G39*$C$4,0),ROUNDUP(G39*$B$4,0)))) -> 1 | J39: =IF(OR(C39="Клапан_BDH",C39="Клапан_UFM",C39="Клапан_UFM_AF",C39="Клапан_RV1"),0,(IF(C39="Прокладка",$F$4,$E$4))) -> 2 | K39: =VLOOKUP(H39,ZSEM!$P$2:$R$2225,3,0) -> 454 | L39: =VLOOKUP(H39,ZSEM!$P:$Q,2,0) -> 10002703 | M39: =IF(OR(C39="Шайба",C39="Гайка"),(C39&" "&E39&"x"&F39),IF(IFERROR(FIND("Клапан",C39),0)=0,C39&" "&E39&" "&F39,C39)) -> Пластина 55x50x3 | N39: =G39 -> 1 | O39: =IF(I39>=J39,I39,J39) -> 2 | P39: =IF(C39="Лист","кг",IF(OR(C39="Труба",C39="Лента"),"м",IF(C39="Сетка","м2","шт."))) -> шт. | R39: =D39 -> 316L | V39: =(N39+O39)*W39 -> 0.195 | W39: =VLOOKUP(L39,ZSEM!$Q$2:$S$2237,3,0) -> 0.065
A40: ZSEM | B40: Тарелки | C40: Клапан_F1 | D40: 410S | E40: LL11.1 s1.5 | G40: 2 | H40: Клапан_F1 LL11.1 s1.5; 410S | I40: =IF(OR(C40="Клапан_BDH",C40="Клапан_UFM",C40="Клапан_UFM_AF",C40="Клапан_RV1"),0,(IF(C40="Прокладка",ROUNDUP(G40*$C$4,0),ROUNDUP(G40*$B$4,0)))) -> 1 | J40: =IF(OR(C40="Клапан_BDH",C40="Клапан_UFM",C40="Клапан_UFM_AF",C40="Клапан_RV1"),0,(IF(C40="Прокладка",$F$4,$E$4))) -> 2 | K40: =VLOOKUP(H40,ZSEM!$P$2:$R$2225,3,0) -> 626 | L40: =VLOOKUP(H40,ZSEM!$P:$Q,2,0) -> 11000016 | M40: Клапан_F1 | N40: 2 | O40: =IF(I40>=J40,I40,J40) -> 2 | P40: шт. | R40: 410S | V40: =(N40+O40)*W40 -> 0.124 | W40: =VLOOKUP(L40,ZSEM!$Q$2:$S$2237,3,0) -> 0.031
A41: ZSEM | B41: Вн.Устройства | C41: Сетка_VEPW | D41: 316L | E41: 0.16x40 | G41: 12 | H41: Сетка_VEPW 0.16x40; 316L | I41: 1 | J41: 2 | K41: =VLOOKUP(H41,ZSEM!$P$2:$R$2225,3,0) -> 0 | L41: =VLOOKUP(H41,ZSEM!$P:$Q,2,0) -> 10003303 | M41: Сетка_VEPW 0.16x40 | N41: 12 | O41: 2 | P41: шт. | R41: 316L | V41: =(N41+O41)*W41 -> 0.7 | W41: =VLOOKUP(L41,ZSEM!$Q$2:$S$2237,3,0) -> 0.05
A42: ZSEM | B42: Вн.Устройства | C42: Опорная_пластина | D42: 316L | E42: 54x42x13 | G42: 13 | H42: Опорная_пластина 54x42x13; 316L | I42: 1 | J42: 2 | K42: =VLOOKUP(H42,ZSEM!$P$2:$R$2225,3,0) -> 0 | L42: =VLOOKUP(H42,ZSEM!$P:$Q,2,0) -> 10002504 | M42: Опорная_пластина 54x42x13 | N42: 13 | O42: 2 | P42: шт. | R42: 316L | V42: 0.75 | W42: =VLOOKUP(L42,ZSEM!$Q$2:$S$2237,3,0) -> 0.05
A43: ZSEM | B43: Сепарация | C43: Завихритель | D43: 316L | E43: MKC | G43: 10 | H43: Завихритель MKC; 316L | I43: 1 | J43: 2 | K43: =VLOOKUP(H43,ZSEM!$P$2:$R$2225,3,0) -> 830 | L43: =VLOOKUP(H43,ZSEM!$P:$Q,2,0) -> 10007949 | M43: Завихритель MKC | N43: 10 | O43: 2 | P43: шт. | R43: 316L | V43: 65.82 | W43: =VLOOKUP(L43,ZSEM!$Q$2:$S$2237,3,0) -> 5.485
A44: ZSEM | B44: Сепарация | C44: Сборка_МКС | D44: 316L | E44: 4 шт | G44: 10 | H44: Сборка_МКС 4 шт; 316L | I44: 1 | J44: 2 | K44: =VLOOKUP(H44,ZSEM!$P$2:$R$2225,3,0) -> 832 | L44: =VLOOKUP(H44,ZSEM!$P:$Q,2,0) -> 10007948 | M44: Сборка_МКС 4 шт | N44: 10 | O44: 2 | P44: шт. | R44: 316L | V44: 369.12 | W44: =VLOOKUP(L44,ZSEM!$Q$2:$S$2237,3,0) -> 30.76
A45: ZSEM | B45: Универсальные | C45: Шайба | D45: 321 | E45: 11/22 | F45: 15 | G45: 100 | H45: Шайба 11/22x15; 321 | I45: 5 | J45: 2 | K45: =VLOOKUP(H45,ZSEM!$P$2:$R$2225,3,0) ->  | L45: =VLOOKUP(H45,ZSEM!$P:$Q,2,0) ->  | M45: Шайба 11/22x15 | N45: 100 | O45: 5 | P45: шт. | R45: 321 | V45: =(N45+O45)*W45 ->  | W45: =VLOOKUP(L45,ZSEM!$Q$2:$S$2237,3,0) -> 
A46: ZSEM | B46: Универсальные | C46: Прокладка_шайба | D46: PTFE | E46: 12/32x3 | F46: 6 | G46: 100 | H46: Прокладка_шайба 12/32x3; PTFE | I46: 5 | J46: 2 | K46: =VLOOKUP(H46,ZSEM!$P$2:$R$2225,3,0) -> 0 | L46: =VLOOKUP(H46,ZSEM!$P:$Q,2,0) -> 10036233 | M46: Прокладка_шайба 12/32x3 6 | N46: 100 | O46: 5 | P46: шт. | R46: PTFE | V46: 0.525 | W46: =VLOOKUP(L46,ZSEM!$Q$2:$S$2237,3,0) -> 0.005
A47: ZRAW | C47: Болт | D47: A2 | E47: M16 | F47: 60 | G47: 1 | H47: =IF(OR(C47="Болт",C47="Шпилька"),(C47&" "&E47&"x"&F47&"; "&D47),(C47&" "&E47&"; "&D47)) -> Болт M16x60; A2 | I47: 1 | J47: 2 | K47: =VLOOKUP(H47,ZRAW!$P$2:$R$2048,3,0) -> 428 | L47: =VLOOKUP(H47,ZRAW!$P$2:$R$2048,2,0) -> 10005025 | M47: =IF(OR(C47="Шайба",C47="Гайка"),(C47&" "&E47&"x"&F47),IF(IFERROR(FIND("Клапан",C47),0)=0,C47&" "&E47&"x"&F47,C47)) -> Болт M16x60 | N47: 1 | O47: 2 | P47: шт. | R47: A2 | V47: 0.351 | W47: =VLOOKUP(L47,ZRAW!$Q$2:$S$2078,3,0) -> 0.117
A48: ZRAW | C48: Гайка | D48: A4 | E48: M12 | G48: 1 | H48: =IF(OR(C48="Болт",C48="Шпилька"),(C48&" "&E48&"x"&F48&"; "&D48),(C48&" "&E48&"; "&D48)) -> Гайка M12; A4 | I48: 1 | J48: 2 | K48: =VLOOKUP(H48,ZRAW!$P$2:$R$2048,3,0) -> 402 | L48: =VLOOKUP(H48,ZRAW!$P$2:$R$2048,2,0) -> 10004271 | M48: Гайка M12x | N48: 1 | O48: 2 | P48: шт. | R48: A4 | V48: 0.051 | W48: =VLOOKUP(L48,ZRAW!$Q$2:$S$2078,3,0) -> 0.017
A49: ZRAW | C49: Гайка | D49: A4 | E49: M10 | G49: 1 | H49: =IF(OR(C49="Болт",C49="Шпилька"),(C49&" "&E49&"x"&F49&"; "&D49),(C49&" "&E49&"; "&D49)) -> Гайка M10; A4 | I49: 1 | J49: 2 | K49: =VLOOKUP(H49,ZRAW!$P$2:$R$2048,3,0) -> 401 | L49: =VLOOKUP(H49,ZRAW!$P$2:$R$2048,2,0) -> 10004341 | M49: Гайка M10x | N49: 1 | O49: 2 | P49: шт. | R49: A4 | V49: 0.036 | W49: =VLOOKUP(L49,ZRAW!$Q$2:$S$2078,3,0) -> 0.012
A50: ZRAW | C50: Шайба_DIN9021 | D50: A2 | E50: 17/30x3 | G50: 1 | H50: =IF(OR(C50="Болт",C50="Шпилька"),(C50&" "&E50&"x"&F50&"; "&D50),(C50&" "&E50&"; "&D50)) -> Шайба_DIN9021 17/30x3; A2 | I50: =IF(OR(C50="Клапан_BDH",C50="Клапан_UFM",C50="Клапан_UFM_AF",C50="Клапан_RV1"),0,(IF(C50="Прокладка",ROUNDUP(G50*$C$4,0),ROUNDUP(G50*$B$4,0)))) -> 1 | J50: =IF(OR(C50="Клапан_BDH",C50="Клапан_UFM",C50="Клапан_UFM_AF",C50="Клапан_RV1"),0,(IF(C50="Прокладка",$F$4,$E$4))) -> 2 | K50: =VLOOKUP(H50,ZRAW!$P$2:$R$2048,3,0) ->  | L50: =VLOOKUP(H50,ZRAW!$P$2:$R$2048,2,0) ->  | M50: =IF(OR(C50="Шайба",C50="Гайка"),(C50&" "&E50&"x"&F50),IF(IFERROR(FIND("Клапан",C50),0)=0,C50&" "&E50&" "&F50,C50)) -> Шайба_DIN9021 17/30x3 | N50: =G50 -> 1 | O50: =IF(I50>=J50,I50,J50) -> 2 | P50: =IF(C50="Лист","кг",IF(OR(C50="Труба",C50="Лента"),"м",IF(C50="Сетка","м2","шт."))) -> шт. | R50: =D50 -> A2 | V50: =(N50+O50)*W50 ->  | W50: =VLOOKUP(L50,ZRAW!$Q$2:$S$2078,3,0) -> 
